{"text_format":"3","workbook":"xlsx","n_sheets":4,"sheets":["BUDGETOVERSIGT FOR PERIODEN","MÅNEDLIG UDGIFTSOVERSIGT","SPECIFICEREDE UDGIFTER","VELGØRENHED OG SPONSORATER"],"not_rendered":{"images":1,"defined_names":15},"read":"whole","date_system":"1900"}

{"sheet":"BUDGETOVERSIGT FOR PERIODEN","index":0,"n_rows":16,"n_cols":7,"rows_kept":16,"merged":[[1,1,1,4]]}
[]
[null,"FAKTISK i forhold til BUDGET FOR PERIODEN",{"$nulls":3},"ÅR",{"$f":"YEAR(TODAY())","v":2019}]
[null,"Kode for regnskabsbog","Kontotitel","Faktisk","Budget","Tilbageværende kr.","Tilbageværende %"]
[null,1000,"Reklame",{"$f":"SUMIF(OversigtOverMånedligeUdgifter[Kode for regnskabsbog],ÅrTilDagsDatoTabel[[#This Row],[Kode for regnskabsbog]],OversigtOverMånedligeUdgifter[Total])","v":{"v":0,"d":"kr. 0.00"}},{"v":100000,"d":"kr. 100,000.00"},{"$f":"IF(ÅrTilDagsDatoTabel[[#This Row],[Budget]]=\"\",\"\",ÅrTilDagsDatoTabel[[#This Row],[Budget]]-ÅrTilDagsDatoTabel[[#This Row],[Faktisk]])","v":{"v":100000,"d":"kr. 100,000.00"}},{"$f":"IFERROR(ÅrTilDagsDatoTabel[[#This Row],[Tilbageværende kr.]]/ÅrTilDagsDatoTabel[[#This Row],[Budget]],\"\")","v":{"v":1,"d":"100.00%"}}]
[null,2000,"Kontorudstyr",{"$f":"SUMIF(OversigtOverMånedligeUdgifter[Kode for regnskabsbog],ÅrTilDagsDatoTabel[[#This Row],[Kode for regnskabsbog]],OversigtOverMånedligeUdgifter[Total])","v":{"v":0,"d":"kr. 0.00"}},{"v":100000,"d":"kr. 100,000.00"},{"$f":"IF(ÅrTilDagsDatoTabel[[#This Row],[Budget]]=\"\",\"\",ÅrTilDagsDatoTabel[[#This Row],[Budget]]-ÅrTilDagsDatoTabel[[#This Row],[Faktisk]])","v":{"v":100000,"d":"kr. 100,000.00"}},{"$f":"IFERROR(ÅrTilDagsDatoTabel[[#This Row],[Tilbageværende kr.]]/ÅrTilDagsDatoTabel[[#This Row],[Budget]],\"\")","v":{"v":1,"d":"100.00%"}}]
[null,3000,"Printere",{"$f":"SUMIF(OversigtOverMånedligeUdgifter[Kode for regnskabsbog],ÅrTilDagsDatoTabel[[#This Row],[Kode for regnskabsbog]],OversigtOverMånedligeUdgifter[Total])","v":{"v":0,"d":"kr. 0.00"}},{"v":100000,"d":"kr. 100,000.00"},{"$f":"IF(ÅrTilDagsDatoTabel[[#This Row],[Budget]]=\"\",\"\",ÅrTilDagsDatoTabel[[#This Row],[Budget]]-ÅrTilDagsDatoTabel[[#This Row],[Faktisk]])","v":{"v":100000,"d":"kr. 100,000.00"}},{"$f":"IFERROR(ÅrTilDagsDatoTabel[[#This Row],[Tilbageværende kr.]]/ÅrTilDagsDatoTabel[[#This Row],[Budget]],\"\")","v":{"v":1,"d":"100.00%"}}]
[null,4000,"Serveromkostninger",{"$f":"SUMIF(OversigtOverMånedligeUdgifter[Kode for regnskabsbog],ÅrTilDagsDatoTabel[[#This Row],[Kode for regnskabsbog]],OversigtOverMånedligeUdgifter[Total])","v":{"v":0,"d":"kr. 0.00"}},{"v":100000,"d":"kr. 100,000.00"},{"$f":"IF(ÅrTilDagsDatoTabel[[#This Row],[Budget]]=\"\",\"\",ÅrTilDagsDatoTabel[[#This Row],[Budget]]-ÅrTilDagsDatoTabel[[#This Row],[Faktisk]])","v":{"v":100000,"d":"kr. 100,000.00"}},{"$f":"IFERROR(ÅrTilDagsDatoTabel[[#This Row],[Tilbageværende kr.]]/ÅrTilDagsDatoTabel[[#This Row],[Budget]],\"\")","v":{"v":1,"d":"100.00%"}}]
[null,5000,"Forsyninger",{"$f":"SUMIF(OversigtOverMånedligeUdgifter[Kode for regnskabsbog],ÅrTilDagsDatoTabel[[#This Row],[Kode for regnskabsbog]],OversigtOverMånedligeUdgifter[Total])","v":{"v":0,"d":"kr. 0.00"}},{"v":50000,"d":"kr. 50,000.00"},{"$f":"IF(ÅrTilDagsDatoTabel[[#This Row],[Budget]]=\"\",\"\",ÅrTilDagsDatoTabel[[#This Row],[Budget]]-ÅrTilDagsDatoTabel[[#This Row],[Faktisk]])","v":{"v":50000,"d":"kr. 50,000.00"}},{"$f":"IFERROR(ÅrTilDagsDatoTabel[[#This Row],[Tilbageværende kr.]]/ÅrTilDagsDatoTabel[[#This Row],[Budget]],\"\")","v":{"v":1,"d":"100.00%"}}]
[null,6000,"Kundeudgifter",{"$f":"SUMIF(OversigtOverMånedligeUdgifter[Kode for regnskabsbog],ÅrTilDagsDatoTabel[[#This Row],[Kode for regnskabsbog]],OversigtOverMånedligeUdgifter[Total])","v":{"v":0,"d":"kr. 0.00"}},{"v":25000,"d":"kr. 25,000.00"},{"$f":"IF(ÅrTilDagsDatoTabel[[#This Row],[Budget]]=\"\",\"\",ÅrTilDagsDatoTabel[[#This Row],[Budget]]-ÅrTilDagsDatoTabel[[#This Row],[Faktisk]])","v":{"v":25000,"d":"kr. 25,000.00"}},{"$f":"IFERROR(ÅrTilDagsDatoTabel[[#This Row],[Tilbageværende kr.]]/ÅrTilDagsDatoTabel[[#This Row],[Budget]],\"\")","v":{"v":1,"d":"100.00%"}}]
[null,7000,"Computere",{"$f":"SUMIF(OversigtOverMånedligeUdgifter[Kode for regnskabsbog],ÅrTilDagsDatoTabel[[#This Row],[Kode for regnskabsbog]],OversigtOverMånedligeUdgifter[Total])","v":{"v":0,"d":"kr. 0.00"}},{"v":75000,"d":"kr. 75,000.00"},{"$f":"IF(ÅrTilDagsDatoTabel[[#This Row],[Budget]]=\"\",\"\",ÅrTilDagsDatoTabel[[#This Row],[Budget]]-ÅrTilDagsDatoTabel[[#This Row],[Faktisk]])","v":{"v":75000,"d":"kr. 75,000.00"}},{"$f":"IFERROR(ÅrTilDagsDatoTabel[[#This Row],[Tilbageværende kr.]]/ÅrTilDagsDatoTabel[[#This Row],[Budget]],\"\")","v":{"v":1,"d":"100.00%"}}]
[null,8000,"Sundhedsordning",{"$f":"SUMIF(OversigtOverMånedligeUdgifter[Kode for regnskabsbog],ÅrTilDagsDatoTabel[[#This Row],[Kode for regnskabsbog]],OversigtOverMånedligeUdgifter[Total])","v":{"v":0,"d":"kr. 0.00"}},{"v":65000,"d":"kr. 65,000.00"},{"$f":"IF(ÅrTilDagsDatoTabel[[#This Row],[Budget]]=\"\",\"\",ÅrTilDagsDatoTabel[[#This Row],[Budget]]-ÅrTilDagsDatoTabel[[#This Row],[Faktisk]])","v":{"v":65000,"d":"kr. 65,000.00"}},{"$f":"IFERROR(ÅrTilDagsDatoTabel[[#This Row],[Tilbageværende kr.]]/ÅrTilDagsDatoTabel[[#This Row],[Budget]],\"\")","v":{"v":1,"d":"100.00%"}}]
[null,9000,"Byggeomkostninger",{"$f":"SUMIF(OversigtOverMånedligeUdgifter[Kode for regnskabsbog],ÅrTilDagsDatoTabel[[#This Row],[Kode for regnskabsbog]],OversigtOverMånedligeUdgifter[Total])","v":{"v":0,"d":"kr. 0.00"}},{"v":125000,"d":"kr. 125,000.00"},{"$f":"IF(ÅrTilDagsDatoTabel[[#This Row],[Budget]]=\"\",\"\",ÅrTilDagsDatoTabel[[#This Row],[Budget]]-ÅrTilDagsDatoTabel[[#This Row],[Faktisk]])","v":{"v":125000,"d":"kr. 125,000.00"}},{"$f":"IFERROR(ÅrTilDagsDatoTabel[[#This Row],[Tilbageværende kr.]]/ÅrTilDagsDatoTabel[[#This Row],[Budget]],\"\")","v":{"v":1,"d":"100.00%"}}]
[null,10000,"Marketing",{"$f":"SUMIF(OversigtOverMånedligeUdgifter[Kode for regnskabsbog],ÅrTilDagsDatoTabel[[#This Row],[Kode for regnskabsbog]],OversigtOverMånedligeUdgifter[Total])","v":{"v":0,"d":"kr. 0.00"}},{"v":100000,"d":"kr. 100,000.00"},{"$f":"IF(ÅrTilDagsDatoTabel[[#This Row],[Budget]]=\"\",\"\",ÅrTilDagsDatoTabel[[#This Row],[Budget]]-ÅrTilDagsDatoTabel[[#This Row],[Faktisk]])","v":{"v":100000,"d":"kr. 100,000.00"}},{"$f":"IFERROR(ÅrTilDagsDatoTabel[[#This Row],[Tilbageværende kr.]]/ÅrTilDagsDatoTabel[[#This Row],[Budget]],\"\")","v":{"v":1,"d":"100.00%"}}]
[null,11000,"Velgørenhed",{"$f":"SUMIF(OversigtOverMånedligeUdgifter[Kode for regnskabsbog],ÅrTilDagsDatoTabel[[#This Row],[Kode for regnskabsbog]],OversigtOverMånedligeUdgifter[Total])","v":{"v":0,"d":"kr. 0.00"}},{"v":250000,"d":"kr. 250,000.00"},{"$f":"IF(ÅrTilDagsDatoTabel[[#This Row],[Budget]]=\"\",\"\",ÅrTilDagsDatoTabel[[#This Row],[Budget]]-ÅrTilDagsDatoTabel[[#This Row],[Faktisk]])","v":{"v":250000,"d":"kr. 250,000.00"}},{"$f":"IFERROR(ÅrTilDagsDatoTabel[[#This Row],[Tilbageværende kr.]]/ÅrTilDagsDatoTabel[[#This Row],[Budget]],\"\")","v":{"v":1,"d":"100.00%"}}]
[null,12000,"Sponsorater",{"$f":"SUMIF(OversigtOverMånedligeUdgifter[Kode for regnskabsbog],ÅrTilDagsDatoTabel[[#This Row],[Kode for regnskabsbog]],OversigtOverMånedligeUdgifter[Total])","v":{"v":0,"d":"kr. 0.00"}},{"v":50000,"d":"kr. 50,000.00"},{"$f":"IF(ÅrTilDagsDatoTabel[[#This Row],[Budget]]=\"\",\"\",ÅrTilDagsDatoTabel[[#This Row],[Budget]]-ÅrTilDagsDatoTabel[[#This Row],[Faktisk]])","v":{"v":50000,"d":"kr. 50,000.00"}},{"$f":"IFERROR(ÅrTilDagsDatoTabel[[#This Row],[Tilbageværende kr.]]/ÅrTilDagsDatoTabel[[#This Row],[Budget]],\"\")","v":{"v":1,"d":"100.00%"}}]
[null,"Total",null,{"$f":"SUBTOTAL(109,ÅrTilDagsDatoTabel[Faktisk])","v":{"v":0,"d":"kr. 0.00"}},{"$f":"SUBTOTAL(109,ÅrTilDagsDatoTabel[Budget])","v":{"v":1140000,"d":"kr. 1,140,000.00"}},{"$f":"SUBTOTAL(109,ÅrTilDagsDatoTabel[Tilbageværende kr.])","v":{"v":1140000,"d":"kr. 1,140,000.00"}},{"$f":"ÅrTilDagsDatoTabel[[#Totals],[Tilbageværende kr.]]/ÅrTilDagsDatoTabel[[#Totals],[Budget]]","v":{"v":1,"d":"100.00%"}}]

{"sheet":"MÅNEDLIG UDGIFTSOVERSIGT","index":1,"n_rows":18,"n_cols":17,"rows_kept":18,"merged":[[1,1,1,16]]}
[]
[null,"OVERSIGT OVER MÅNEDLIGE UDGIFTER"]
[null,"Udsnit til at filtrere data efter kontotitler findes i denne celle.",null,{"$f":"DATEVALUE(\"1-JAN\"&_ÅR)","v":{"v":43466,"d":"4346600.00%"}},{"$f":"DATEVALUE(\"1-FEB\"&_ÅR)","v":{"v":43497,"d":"4349700.00%"}},{"$f":"DATEVALUE(\"1-MAR\"&_ÅR)","v":{"v":43525,"d":"4352500.00%"}},{"$f":"DATEVALUE(\"1-APR\"&_ÅR)","v":{"v":43556,"d":"4355600.00%"}},{"$f":"DATEVALUE(\"1-MAJ\"&_ÅR)","v":{"v":43586,"d":"4358600.00%"}},{"$f":"DATEVALUE(\"1-JUN\"&_ÅR)","v":{"v":43617,"d":"4361700.00%"}},{"$f":"DATEVALUE(\"1-JUL\"&_ÅR)","v":{"v":43647,"d":"4364700.00%"}},{"$f":"DATEVALUE(\"1-AUG\"&_ÅR)","v":{"v":43678,"d":"4367800.00%"}},{"$f":"DATEVALUE(\"1-SEP\"&_ÅR)","v":{"v":43709,"d":"4370900.00%"}},{"$f":"DATEVALUE(\"1-OKT\"&_ÅR)","v":{"v":43739,"d":"4373900.00%"}},{"$f":"DATEVALUE(\"1-NOV\"&_ÅR)","v":{"v":43770,"d":"4377000.00%"}},{"$f":"DATEVALUE(\"1-DEC\"&_ÅR)","v":{"v":43800,"d":"4380000.00%"}}]
[{"$nulls":3},{"$f":"EOMONTH(D3,0)","v":{"v":43496,"d":"4349600.00%"}},{"$f":"EOMONTH(E3,0)","v":{"v":43524,"d":"4352400.00%"}},{"$f":"EOMONTH(F3,0)","v":{"v":43555,"d":"4355500.00%"}},{"$f":"EOMONTH(G3,0)","v":{"v":43585,"d":"4358500.00%"}},{"$f":"EOMONTH(H3,0)","v":{"v":43616,"d":"4361600.00%"}},{"$f":"EOMONTH(I3,0)","v":{"v":43646,"d":"4364600.00%"}},{"v":43677,"d":"4367700.00%"},{"v":43708,"d":"4370800.00%"},{"v":43738,"d":"4373800.00%"},{"v":43769,"d":"4376900.00%"},{"v":43799,"d":"4379900.00%"},{"v":43830,"d":"4383000.00%"}]
[null,"Kode for regnskabsbog","Kontotitel","Januar","Februar","Marts","April","Maj","Juni","Juli","August","September","Oktober","November","December","Total"," "]
[null,1000,"Reklame",{"$f":"SUMIFS(SpecificeredeUdgifter[Checkbeløb],SpecificeredeUdgifter[Kode for regnskabsbog],OversigtOverMånedligeUdgifter[[#This Row],[Kode for regnskabsbog]],SpecificeredeUdgifter[Fakturadato],\">=\"&D$3,SpecificeredeUdgifter[Fakturadato],\"<=\"&D$4)+SUMIFS(Andet[Checkbeløb],Andet[Kode for regnskabsbog],OversigtOverMånedligeUdgifter[[#This Row],[Kode for regnskabsbog]],Andet[Anmodning om datotjek påbegyndt],\">=\"&DATEVALUE(\" 1 \"&OversigtOverMånedligeUdgifter[[#Headers],[Januar]]&_ÅR),Andet[Anmodning om datotjek påbegyndt],\"<=\"&D$4)","v":{"v":0,"d":"kr. 0.00"}},{"$f":"SUMIFS(SpecificeredeUdgifter[Checkbeløb],SpecificeredeUdgifter[Kode for regnskabsbog],OversigtOverMånedligeUdgifter[[#This Row],[Kode for regnskabsbog]],SpecificeredeUdgifter[Fakturadato],\">=\"&E$3,SpecificeredeUdgifter[Fakturadato],\"<=\"&E$4)+SUMIFS(Andet[Checkbeløb],Andet[Kode for regnskabsbog],OversigtOverMånedligeUdgifter[[#This Row],[Kode for regnskabsbog]],Andet[Anmodning om datotjek påbegyndt],\">=\"&DATEVALUE(\" 1 \"&OversigtOverMånedligeUdgifter[[#Headers],[Februar]]&_ÅR),Andet[Anmodning om datotjek påbegyndt],\"<=\"&E$4)","v":{"v":0,"d":"kr. 0.00"}},{"$f":"SUMIFS(SpecificeredeUdgifter[Checkbeløb],SpecificeredeUdgifter[Kode for regnskabsbog],OversigtOverMånedligeUdgifter[[#This Row],[Kode for regnskabsbog]],SpecificeredeUdgifter[Fakturadato],\">=\"&F$3,SpecificeredeUdgifter[Fakturadato],\"<=\"&F$4)+SUMIFS(Andet[Checkbeløb],Andet[Kode for regnskabsbog],OversigtOverMånedligeUdgifter[[#This Row],[Kode for regnskabsbog]],Andet[Anmodning om datotjek påbegyndt],\">=\"&DATEVALUE(\" 1 \"&OversigtOverMånedligeUdgifter[[#Headers],[Marts]]&_ÅR),Andet[Anmodning om datotjek påbegyndt],\"<=\"&F$4)","v":{"v":0,"d":"kr. 0.00"}},{"$f":"SUMIFS(SpecificeredeUdgifter[Checkbeløb],SpecificeredeUdgifter[Kode for regnskabsbog],OversigtOverMånedligeUdgifter[[#This Row],[Kode for regnskabsbog]],SpecificeredeUdgifter[Fakturadato],\">=\"&G$3,SpecificeredeUdgifter[Fakturadato],\"<=\"&G$4)+SUMIFS(Andet[Checkbeløb],Andet[Kode for regnskabsbog],OversigtOverMånedligeUdgifter[[#This Row],[Kode for regnskabsbog]],Andet[Anmodning om datotjek påbegyndt],\">=\"&DATEVALUE(\" 1 \"&OversigtOverMånedligeUdgifter[[#Headers],[April]]&_ÅR),Andet[Anmodning om datotjek påbegyndt],\"<=\"&G$4)","v":{"v":0,"d":"kr. 0.00"}},{"$f":"SUMIFS(SpecificeredeUdgifter[Checkbeløb],SpecificeredeUdgifter[Kode for regnskabsbog],OversigtOverMånedligeUdgifter[[#This Row],[Kode for regnskabsbog]],SpecificeredeUdgifter[Fakturadato],\">=\"&H$3,SpecificeredeUdgifter[Fakturadato],\"<=\"&H$4)+SUMIFS(Andet[Checkbeløb],Andet[Kode for regnskabsbog],OversigtOverMånedligeUdgifter[[#This Row],[Kode for regnskabsbog]],Andet[Anmodning om datotjek påbegyndt],\">=\"&DATEVALUE(\" 1 \"&OversigtOverMånedligeUdgifter[[#Headers],[Maj]]&_ÅR),Andet[Anmodning om datotjek påbegyndt],\"<=\"&H$4)","v":{"v":0,"d":"kr. 0.00"}},{"$f":"SUMIFS(SpecificeredeUdgifter[Checkbeløb],SpecificeredeUdgifter[Kode for regnskabsbog],OversigtOverMånedligeUdgifter[[#This Row],[Kode for regnskabsbog]],SpecificeredeUdgifter[Fakturadato],\">=\"&I$3,SpecificeredeUdgifter[Fakturadato],\"<=\"&I$4)+SUMIFS(Andet[Checkbeløb],Andet[Kode for regnskabsbog],OversigtOverMånedligeUdgifter[[#This Row],[Kode for regnskabsbog]],Andet[Anmodning om datotjek påbegyndt],\">=\"&DATEVALUE(\" 1 \"&OversigtOverMånedligeUdgifter[[#Headers],[Juni]]&_ÅR),Andet[Anmodning om datotjek påbegyndt],\"<=\"&I$4)","v":{"v":0,"d":"kr. 0.00"}},{"$f":"SUMIFS(SpecificeredeUdgifter[Checkbeløb],SpecificeredeUdgifter[Kode for regnskabsbog],OversigtOverMånedligeUdgifter[[#This Row],[Kode for regnskabsbog]],SpecificeredeUdgifter[Fakturadato],\">=\"&J$3,SpecificeredeUdgifter[Fakturadato],\"<=\"&J$4)+SUMIFS(Andet[Checkbeløb],Andet[Kode for regnskabsbog],OversigtOverMånedligeUdgifter[[#This Row],[Kode for regnskabsbog]],Andet[Anmodning om datotjek påbegyndt],\">=\"&DATEVALUE(\" 1 \"&OversigtOverMånedligeUdgifter[[#Headers],[Juli]]&_ÅR),Andet[Anmodning om datotjek påbegyndt],\"<=\"&J$4)","v":{"v":0,"d":"kr. 0.00"}},{"$f":"SUMIFS(SpecificeredeUdgifter[Checkbeløb],SpecificeredeUdgifter[Kode for regnskabsbog],OversigtOverMånedligeUdgifter[[#This Row],[Kode for regnskabsbog]],SpecificeredeUdgifter[Fakturadato],\">=\"&K$3,SpecificeredeUdgifter[Fakturadato],\"<=\"&K$4)+SUMIFS(Andet[Checkbeløb],Andet[Kode for regnskabsbog],OversigtOverMånedligeUdgifter[[#This Row],[Kode for regnskabsbog]],Andet[Anmodning om datotjek påbegyndt],\">=\"&DATEVALUE(\" 1 \"&OversigtOverMånedligeUdgifter[[#Headers],[August]]&_ÅR),Andet[Anmodning om datotjek påbegyndt],\"<=\"&K$4)","v":{"v":0,"d":"kr. 0.00"}},{"$f":"SUMIFS(SpecificeredeUdgifter[Checkbeløb],SpecificeredeUdgifter[Kode for regnskabsbog],OversigtOverMånedligeUdgifter[[#This Row],[Kode for regnskabsbog]],SpecificeredeUdgifter[Fakturadato],\">=\"&L$3,SpecificeredeUdgifter[Fakturadato],\"<=\"&L$4)+SUMIFS(Andet[Checkbeløb],Andet[Kode for regnskabsbog],OversigtOverMånedligeUdgifter[[#This Row],[Kode for regnskabsbog]],Andet[Anmodning om datotjek påbegyndt],\">=\"&DATEVALUE(\" 1 \"&OversigtOverMånedligeUdgifter[[#Headers],[September]]&_ÅR),Andet[Anmodning om datotjek påbegyndt],\"<=\"&L$4)","v":{"v":0,"d":"kr. 0.00"}},{"$f":"SUMIFS(SpecificeredeUdgifter[Checkbeløb],SpecificeredeUdgifter[Kode for regnskabsbog],OversigtOverMånedligeUdgifter[[#This Row],[Kode for regnskabsbog]],SpecificeredeUdgifter[Fakturadato],\">=\"&M$3,SpecificeredeUdgifter[Fakturadato],\"<=\"&M$4)+SUMIFS(Andet[Checkbeløb],Andet[Kode for regnskabsbog],OversigtOverMånedligeUdgifter[[#This Row],[Kode for regnskabsbog]],Andet[Anmodning om datotjek påbegyndt],\">=\"&DATEVALUE(\" 1 \"&OversigtOverMånedligeUdgifter[[#Headers],[Oktober]]&_ÅR),Andet[Anmodning om datotjek påbegyndt],\"<=\"&M$4)","v":{"v":0,"d":"kr. 0.00"}},{"$f":"SUMIFS(SpecificeredeUdgifter[Checkbeløb],SpecificeredeUdgifter[Kode for regnskabsbog],OversigtOverMånedligeUdgifter[[#This Row],[Kode for regnskabsbog]],SpecificeredeUdgifter[Fakturadato],\">=\"&N$3,SpecificeredeUdgifter[Fakturadato],\"<=\"&N$4)+SUMIFS(Andet[Checkbeløb],Andet[Kode for regnskabsbog],OversigtOverMånedligeUdgifter[[#This Row],[Kode for regnskabsbog]],Andet[Anmodning om datotjek påbegyndt],\">=\"&DATEVALUE(\" 1 \"&OversigtOverMånedligeUdgifter[[#Headers],[November]]&_ÅR),Andet[Anmodning om datotjek påbegyndt],\"<=\"&N$4)","v":{"v":0,"d":"kr. 0.00"}},{"$f":"SUMIFS(SpecificeredeUdgifter[Checkbeløb],SpecificeredeUdgifter[Kode for regnskabsbog],OversigtOverMånedligeUdgifter[[#This Row],[Kode for regnskabsbog]],SpecificeredeUdgifter[Fakturadato],\">=\"&O$3,SpecificeredeUdgifter[Fakturadato],\"<=\"&O$4)+SUMIFS(Andet[Checkbeløb],Andet[Kode for regnskabsbog],OversigtOverMånedligeUdgifter[[#This Row],[Kode for regnskabsbog]],Andet[Anmodning om datotjek påbegyndt],\">=\"&DATEVALUE(\" 1 \"&OversigtOverMånedligeUdgifter[[#Headers],[December]]&_ÅR),Andet[Anmodning om datotjek påbegyndt],\"<=\"&O$4)","v":{"v":0,"d":"kr. 0.00"}},{"$f":"SUM(OversigtOverMånedligeUdgifter[[#This Row],[Januar]:[December]])","v":{"v":0,"d":"kr. 0.00"}}]
[null,2000,"Kontorudstyr",{"$f":"SUMIFS(SpecificeredeUdgifter[Checkbeløb],SpecificeredeUdgifter[Kode for regnskabsbog],OversigtOverMånedligeUdgifter[[#This Row],[Kode for regnskabsbog]],SpecificeredeUdgifter[Fakturadato],\">=\"&D$3,SpecificeredeUdgifter[Fakturadato],\"<=\"&D$4)+SUMIFS(Andet[Checkbeløb],Andet[Kode for regnskabsbog],OversigtOverMånedligeUdgifter[[#This Row],[Kode for regnskabsbog]],Andet[Anmodning om datotjek påbegyndt],\">=\"&DATEVALUE(\" 1 \"&OversigtOverMånedligeUdgifter[[#Headers],[Januar]]&_ÅR),Andet[Anmodning om datotjek påbegyndt],\"<=\"&D$4)","v":{"v":0,"d":"kr. 0.00"}},{"$f":"SUMIFS(SpecificeredeUdgifter[Checkbeløb],SpecificeredeUdgifter[Kode for regnskabsbog],OversigtOverMånedligeUdgifter[[#This Row],[Kode for regnskabsbog]],SpecificeredeUdgifter[Fakturadato],\">=\"&E$3,SpecificeredeUdgifter[Fakturadato],\"<=\"&E$4)+SUMIFS(Andet[Checkbeløb],Andet[Kode for regnskabsbog],OversigtOverMånedligeUdgifter[[#This Row],[Kode for regnskabsbog]],Andet[Anmodning om datotjek påbegyndt],\">=\"&DATEVALUE(\" 1 \"&OversigtOverMånedligeUdgifter[[#Headers],[Februar]]&_ÅR),Andet[Anmodning om datotjek påbegyndt],\"<=\"&E$4)","v":{"v":0,"d":"kr. 0.00"}},{"$f":"SUMIFS(SpecificeredeUdgifter[Checkbeløb],SpecificeredeUdgifter[Kode for regnskabsbog],OversigtOverMånedligeUdgifter[[#This Row],[Kode for regnskabsbog]],SpecificeredeUdgifter[Fakturadato],\">=\"&F$3,SpecificeredeUdgifter[Fakturadato],\"<=\"&F$4)+SUMIFS(Andet[Checkbeløb],Andet[Kode for regnskabsbog],OversigtOverMånedligeUdgifter[[#This Row],[Kode for regnskabsbog]],Andet[Anmodning om datotjek påbegyndt],\">=\"&DATEVALUE(\" 1 \"&OversigtOverMånedligeUdgifter[[#Headers],[Marts]]&_ÅR),Andet[Anmodning om datotjek påbegyndt],\"<=\"&F$4)","v":{"v":0,"d":"kr. 0.00"}},{"$f":"SUMIFS(SpecificeredeUdgifter[Checkbeløb],SpecificeredeUdgifter[Kode for regnskabsbog],OversigtOverMånedligeUdgifter[[#This Row],[Kode for regnskabsbog]],SpecificeredeUdgifter[Fakturadato],\">=\"&G$3,SpecificeredeUdgifter[Fakturadato],\"<=\"&G$4)+SUMIFS(Andet[Checkbeløb],Andet[Kode for regnskabsbog],OversigtOverMånedligeUdgifter[[#This Row],[Kode for regnskabsbog]],Andet[Anmodning om datotjek påbegyndt],\">=\"&DATEVALUE(\" 1 \"&OversigtOverMånedligeUdgifter[[#Headers],[April]]&_ÅR),Andet[Anmodning om datotjek påbegyndt],\"<=\"&G$4)","v":{"v":0,"d":"kr. 0.00"}},{"$f":"SUMIFS(SpecificeredeUdgifter[Checkbeløb],SpecificeredeUdgifter[Kode for regnskabsbog],OversigtOverMånedligeUdgifter[[#This Row],[Kode for regnskabsbog]],SpecificeredeUdgifter[Fakturadato],\">=\"&H$3,SpecificeredeUdgifter[Fakturadato],\"<=\"&H$4)+SUMIFS(Andet[Checkbeløb],Andet[Kode for regnskabsbog],OversigtOverMånedligeUdgifter[[#This Row],[Kode for regnskabsbog]],Andet[Anmodning om datotjek påbegyndt],\">=\"&DATEVALUE(\" 1 \"&OversigtOverMånedligeUdgifter[[#Headers],[Maj]]&_ÅR),Andet[Anmodning om datotjek påbegyndt],\"<=\"&H$4)","v":{"v":0,"d":"kr. 0.00"}},{"$f":"SUMIFS(SpecificeredeUdgifter[Checkbeløb],SpecificeredeUdgifter[Kode for regnskabsbog],OversigtOverMånedligeUdgifter[[#This Row],[Kode for regnskabsbog]],SpecificeredeUdgifter[Fakturadato],\">=\"&I$3,SpecificeredeUdgifter[Fakturadato],\"<=\"&I$4)+SUMIFS(Andet[Checkbeløb],Andet[Kode for regnskabsbog],OversigtOverMånedligeUdgifter[[#This Row],[Kode for regnskabsbog]],Andet[Anmodning om datotjek påbegyndt],\">=\"&DATEVALUE(\" 1 \"&OversigtOverMånedligeUdgifter[[#Headers],[Juni]]&_ÅR),Andet[Anmodning om datotjek påbegyndt],\"<=\"&I$4)","v":{"v":0,"d":"kr. 0.00"}},{"$f":"SUMIFS(SpecificeredeUdgifter[Checkbeløb],SpecificeredeUdgifter[Kode for regnskabsbog],OversigtOverMånedligeUdgifter[[#This Row],[Kode for regnskabsbog]],SpecificeredeUdgifter[Fakturadato],\">=\"&J$3,SpecificeredeUdgifter[Fakturadato],\"<=\"&J$4)+SUMIFS(Andet[Checkbeløb],Andet[Kode for regnskabsbog],OversigtOverMånedligeUdgifter[[#This Row],[Kode for regnskabsbog]],Andet[Anmodning om datotjek påbegyndt],\">=\"&DATEVALUE(\" 1 \"&OversigtOverMånedligeUdgifter[[#Headers],[Juli]]&_ÅR),Andet[Anmodning om datotjek påbegyndt],\"<=\"&J$4)","v":{"v":0,"d":"kr. 0.00"}},{"$f":"SUMIFS(SpecificeredeUdgifter[Checkbeløb],SpecificeredeUdgifter[Kode for regnskabsbog],OversigtOverMånedligeUdgifter[[#This Row],[Kode for regnskabsbog]],SpecificeredeUdgifter[Fakturadato],\">=\"&K$3,SpecificeredeUdgifter[Fakturadato],\"<=\"&K$4)+SUMIFS(Andet[Checkbeløb],Andet[Kode for regnskabsbog],OversigtOverMånedligeUdgifter[[#This Row],[Kode for regnskabsbog]],Andet[Anmodning om datotjek påbegyndt],\">=\"&DATEVALUE(\" 1 \"&OversigtOverMånedligeUdgifter[[#Headers],[August]]&_ÅR),Andet[Anmodning om datotjek påbegyndt],\"<=\"&K$4)","v":{"v":0,"d":"kr. 0.00"}},{"$f":"SUMIFS(SpecificeredeUdgifter[Checkbeløb],SpecificeredeUdgifter[Kode for regnskabsbog],OversigtOverMånedligeUdgifter[[#This Row],[Kode for regnskabsbog]],SpecificeredeUdgifter[Fakturadato],\">=\"&L$3,SpecificeredeUdgifter[Fakturadato],\"<=\"&L$4)+SUMIFS(Andet[Checkbeløb],Andet[Kode for regnskabsbog],OversigtOverMånedligeUdgifter[[#This Row],[Kode for regnskabsbog]],Andet[Anmodning om datotjek påbegyndt],\">=\"&DATEVALUE(\" 1 \"&OversigtOverMånedligeUdgifter[[#Headers],[September]]&_ÅR),Andet[Anmodning om datotjek påbegyndt],\"<=\"&L$4)","v":{"v":0,"d":"kr. 0.00"}},{"$f":"SUMIFS(SpecificeredeUdgifter[Checkbeløb],SpecificeredeUdgifter[Kode for regnskabsbog],OversigtOverMånedligeUdgifter[[#This Row],[Kode for regnskabsbog]],SpecificeredeUdgifter[Fakturadato],\">=\"&M$3,SpecificeredeUdgifter[Fakturadato],\"<=\"&M$4)+SUMIFS(Andet[Checkbeløb],Andet[Kode for regnskabsbog],OversigtOverMånedligeUdgifter[[#This Row],[Kode for regnskabsbog]],Andet[Anmodning om datotjek påbegyndt],\">=\"&DATEVALUE(\" 1 \"&OversigtOverMånedligeUdgifter[[#Headers],[Oktober]]&_ÅR),Andet[Anmodning om datotjek påbegyndt],\"<=\"&M$4)","v":{"v":0,"d":"kr. 0.00"}},{"$f":"SUMIFS(SpecificeredeUdgifter[Checkbeløb],SpecificeredeUdgifter[Kode for regnskabsbog],OversigtOverMånedligeUdgifter[[#This Row],[Kode for regnskabsbog]],SpecificeredeUdgifter[Fakturadato],\">=\"&N$3,SpecificeredeUdgifter[Fakturadato],\"<=\"&N$4)+SUMIFS(Andet[Checkbeløb],Andet[Kode for regnskabsbog],OversigtOverMånedligeUdgifter[[#This Row],[Kode for regnskabsbog]],Andet[Anmodning om datotjek påbegyndt],\">=\"&DATEVALUE(\" 1 \"&OversigtOverMånedligeUdgifter[[#Headers],[November]]&_ÅR),Andet[Anmodning om datotjek påbegyndt],\"<=\"&N$4)","v":{"v":0,"d":"kr. 0.00"}},{"$f":"SUMIFS(SpecificeredeUdgifter[Checkbeløb],SpecificeredeUdgifter[Kode for regnskabsbog],OversigtOverMånedligeUdgifter[[#This Row],[Kode for regnskabsbog]],SpecificeredeUdgifter[Fakturadato],\">=\"&O$3,SpecificeredeUdgifter[Fakturadato],\"<=\"&O$4)+SUMIFS(Andet[Checkbeløb],Andet[Kode for regnskabsbog],OversigtOverMånedligeUdgifter[[#This Row],[Kode for regnskabsbog]],Andet[Anmodning om datotjek påbegyndt],\">=\"&DATEVALUE(\" 1 \"&OversigtOverMånedligeUdgifter[[#Headers],[December]]&_ÅR),Andet[Anmodning om datotjek påbegyndt],\"<=\"&O$4)","v":{"v":0,"d":"kr. 0.00"}},{"$f":"SUM(OversigtOverMånedligeUdgifter[[#This Row],[Januar]:[December]])","v":{"v":0,"d":"kr. 0.00"}}]
[null,3000,"Printere",{"$f":"SUMIFS(SpecificeredeUdgifter[Checkbeløb],SpecificeredeUdgifter[Kode for regnskabsbog],OversigtOverMånedligeUdgifter[[#This Row],[Kode for regnskabsbog]],SpecificeredeUdgifter[Fakturadato],\">=\"&D$3,SpecificeredeUdgifter[Fakturadato],\"<=\"&D$4)+SUMIFS(Andet[Checkbeløb],Andet[Kode for regnskabsbog],OversigtOverMånedligeUdgifter[[#This Row],[Kode for regnskabsbog]],Andet[Anmodning om datotjek påbegyndt],\">=\"&DATEVALUE(\" 1 \"&OversigtOverMånedligeUdgifter[[#Headers],[Januar]]&_ÅR),Andet[Anmodning om datotjek påbegyndt],\"<=\"&D$4)","v":{"v":0,"d":"kr. 0.00"}},{"$f":"SUMIFS(SpecificeredeUdgifter[Checkbeløb],SpecificeredeUdgifter[Kode for regnskabsbog],OversigtOverMånedligeUdgifter[[#This Row],[Kode for regnskabsbog]],SpecificeredeUdgifter[Fakturadato],\">=\"&E$3,SpecificeredeUdgifter[Fakturadato],\"<=\"&E$4)+SUMIFS(Andet[Checkbeløb],Andet[Kode for regnskabsbog],OversigtOverMånedligeUdgifter[[#This Row],[Kode for regnskabsbog]],Andet[Anmodning om datotjek påbegyndt],\">=\"&DATEVALUE(\" 1 \"&OversigtOverMånedligeUdgifter[[#Headers],[Februar]]&_ÅR),Andet[Anmodning om datotjek påbegyndt],\"<=\"&E$4)","v":{"v":0,"d":"kr. 0.00"}},{"$f":"SUMIFS(SpecificeredeUdgifter[Checkbeløb],SpecificeredeUdgifter[Kode for regnskabsbog],OversigtOverMånedligeUdgifter[[#This Row],[Kode for regnskabsbog]],SpecificeredeUdgifter[Fakturadato],\">=\"&F$3,SpecificeredeUdgifter[Fakturadato],\"<=\"&F$4)+SUMIFS(Andet[Checkbeløb],Andet[Kode for regnskabsbog],OversigtOverMånedligeUdgifter[[#This Row],[Kode for regnskabsbog]],Andet[Anmodning om datotjek påbegyndt],\">=\"&DATEVALUE(\" 1 \"&OversigtOverMånedligeUdgifter[[#Headers],[Marts]]&_ÅR),Andet[Anmodning om datotjek påbegyndt],\"<=\"&F$4)","v":{"v":0,"d":"kr. 0.00"}},{"$f":"SUMIFS(SpecificeredeUdgifter[Checkbeløb],SpecificeredeUdgifter[Kode for regnskabsbog],OversigtOverMånedligeUdgifter[[#This Row],[Kode for regnskabsbog]],SpecificeredeUdgifter[Fakturadato],\">=\"&G$3,SpecificeredeUdgifter[Fakturadato],\"<=\"&G$4)+SUMIFS(Andet[Checkbeløb],Andet[Kode for regnskabsbog],OversigtOverMånedligeUdgifter[[#This Row],[Kode for regnskabsbog]],Andet[Anmodning om datotjek påbegyndt],\">=\"&DATEVALUE(\" 1 \"&OversigtOverMånedligeUdgifter[[#Headers],[April]]&_ÅR),Andet[Anmodning om datotjek påbegyndt],\"<=\"&G$4)","v":{"v":0,"d":"kr. 0.00"}},{"$f":"SUMIFS(SpecificeredeUdgifter[Checkbeløb],SpecificeredeUdgifter[Kode for regnskabsbog],OversigtOverMånedligeUdgifter[[#This Row],[Kode for regnskabsbog]],SpecificeredeUdgifter[Fakturadato],\">=\"&H$3,SpecificeredeUdgifter[Fakturadato],\"<=\"&H$4)+SUMIFS(Andet[Checkbeløb],Andet[Kode for regnskabsbog],OversigtOverMånedligeUdgifter[[#This Row],[Kode for regnskabsbog]],Andet[Anmodning om datotjek påbegyndt],\">=\"&DATEVALUE(\" 1 \"&OversigtOverMånedligeUdgifter[[#Headers],[Maj]]&_ÅR),Andet[Anmodning om datotjek påbegyndt],\"<=\"&H$4)","v":{"v":0,"d":"kr. 0.00"}},{"$f":"SUMIFS(SpecificeredeUdgifter[Checkbeløb],SpecificeredeUdgifter[Kode for regnskabsbog],OversigtOverMånedligeUdgifter[[#This Row],[Kode for regnskabsbog]],SpecificeredeUdgifter[Fakturadato],\">=\"&I$3,SpecificeredeUdgifter[Fakturadato],\"<=\"&I$4)+SUMIFS(Andet[Checkbeløb],Andet[Kode for regnskabsbog],OversigtOverMånedligeUdgifter[[#This Row],[Kode for regnskabsbog]],Andet[Anmodning om datotjek påbegyndt],\">=\"&DATEVALUE(\" 1 \"&OversigtOverMånedligeUdgifter[[#Headers],[Juni]]&_ÅR),Andet[Anmodning om datotjek påbegyndt],\"<=\"&I$4)","v":{"v":0,"d":"kr. 0.00"}},{"$f":"SUMIFS(SpecificeredeUdgifter[Checkbeløb],SpecificeredeUdgifter[Kode for regnskabsbog],OversigtOverMånedligeUdgifter[[#This Row],[Kode for regnskabsbog]],SpecificeredeUdgifter[Fakturadato],\">=\"&J$3,SpecificeredeUdgifter[Fakturadato],\"<=\"&J$4)+SUMIFS(Andet[Checkbeløb],Andet[Kode for regnskabsbog],OversigtOverMånedligeUdgifter[[#This Row],[Kode for regnskabsbog]],Andet[Anmodning om datotjek påbegyndt],\">=\"&DATEVALUE(\" 1 \"&OversigtOverMånedligeUdgifter[[#Headers],[Juli]]&_ÅR),Andet[Anmodning om datotjek påbegyndt],\"<=\"&J$4)","v":{"v":0,"d":"kr. 0.00"}},{"$f":"SUMIFS(SpecificeredeUdgifter[Checkbeløb],SpecificeredeUdgifter[Kode for regnskabsbog],OversigtOverMånedligeUdgifter[[#This Row],[Kode for regnskabsbog]],SpecificeredeUdgifter[Fakturadato],\">=\"&K$3,SpecificeredeUdgifter[Fakturadato],\"<=\"&K$4)+SUMIFS(Andet[Checkbeløb],Andet[Kode for regnskabsbog],OversigtOverMånedligeUdgifter[[#This Row],[Kode for regnskabsbog]],Andet[Anmodning om datotjek påbegyndt],\">=\"&DATEVALUE(\" 1 \"&OversigtOverMånedligeUdgifter[[#Headers],[August]]&_ÅR),Andet[Anmodning om datotjek påbegyndt],\"<=\"&K$4)","v":{"v":0,"d":"kr. 0.00"}},{"$f":"SUMIFS(SpecificeredeUdgifter[Checkbeløb],SpecificeredeUdgifter[Kode for regnskabsbog],OversigtOverMånedligeUdgifter[[#This Row],[Kode for regnskabsbog]],SpecificeredeUdgifter[Fakturadato],\">=\"&L$3,SpecificeredeUdgifter[Fakturadato],\"<=\"&L$4)+SUMIFS(Andet[Checkbeløb],Andet[Kode for regnskabsbog],OversigtOverMånedligeUdgifter[[#This Row],[Kode for regnskabsbog]],Andet[Anmodning om datotjek påbegyndt],\">=\"&DATEVALUE(\" 1 \"&OversigtOverMånedligeUdgifter[[#Headers],[September]]&_ÅR),Andet[Anmodning om datotjek påbegyndt],\"<=\"&L$4)","v":{"v":0,"d":"kr. 0.00"}},{"$f":"SUMIFS(SpecificeredeUdgifter[Checkbeløb],SpecificeredeUdgifter[Kode for regnskabsbog],OversigtOverMånedligeUdgifter[[#This Row],[Kode for regnskabsbog]],SpecificeredeUdgifter[Fakturadato],\">=\"&M$3,SpecificeredeUdgifter[Fakturadato],\"<=\"&M$4)+SUMIFS(Andet[Checkbeløb],Andet[Kode for regnskabsbog],OversigtOverMånedligeUdgifter[[#This Row],[Kode for regnskabsbog]],Andet[Anmodning om datotjek påbegyndt],\">=\"&DATEVALUE(\" 1 \"&OversigtOverMånedligeUdgifter[[#Headers],[Oktober]]&_ÅR),Andet[Anmodning om datotjek påbegyndt],\"<=\"&M$4)","v":{"v":0,"d":"kr. 0.00"}},{"$f":"SUMIFS(SpecificeredeUdgifter[Checkbeløb],SpecificeredeUdgifter[Kode for regnskabsbog],OversigtOverMånedligeUdgifter[[#This Row],[Kode for regnskabsbog]],SpecificeredeUdgifter[Fakturadato],\">=\"&N$3,SpecificeredeUdgifter[Fakturadato],\"<=\"&N$4)+SUMIFS(Andet[Checkbeløb],Andet[Kode for regnskabsbog],OversigtOverMånedligeUdgifter[[#This Row],[Kode for regnskabsbog]],Andet[Anmodning om datotjek påbegyndt],\">=\"&DATEVALUE(\" 1 \"&OversigtOverMånedligeUdgifter[[#Headers],[November]]&_ÅR),Andet[Anmodning om datotjek påbegyndt],\"<=\"&N$4)","v":{"v":0,"d":"kr. 0.00"}},{"$f":"SUMIFS(SpecificeredeUdgifter[Checkbeløb],SpecificeredeUdgifter[Kode for regnskabsbog],OversigtOverMånedligeUdgifter[[#This Row],[Kode for regnskabsbog]],SpecificeredeUdgifter[Fakturadato],\">=\"&O$3,SpecificeredeUdgifter[Fakturadato],\"<=\"&O$4)+SUMIFS(Andet[Checkbeløb],Andet[Kode for regnskabsbog],OversigtOverMånedligeUdgifter[[#This Row],[Kode for regnskabsbog]],Andet[Anmodning om datotjek påbegyndt],\">=\"&DATEVALUE(\" 1 \"&OversigtOverMånedligeUdgifter[[#Headers],[December]]&_ÅR),Andet[Anmodning om datotjek påbegyndt],\"<=\"&O$4)","v":{"v":0,"d":"kr. 0.00"}},{"$f":"SUM(OversigtOverMånedligeUdgifter[[#This Row],[Januar]:[December]])","v":{"v":0,"d":"kr. 0.00"}}]
[null,4000,"Serveromkostninger",{"$f":"SUMIFS(SpecificeredeUdgifter[Checkbeløb],SpecificeredeUdgifter[Kode for regnskabsbog],OversigtOverMånedligeUdgifter[[#This Row],[Kode for regnskabsbog]],SpecificeredeUdgifter[Fakturadato],\">=\"&D$3,SpecificeredeUdgifter[Fakturadato],\"<=\"&D$4)+SUMIFS(Andet[Checkbeløb],Andet[Kode for regnskabsbog],OversigtOverMånedligeUdgifter[[#This Row],[Kode for regnskabsbog]],Andet[Anmodning om datotjek påbegyndt],\">=\"&DATEVALUE(\" 1 \"&OversigtOverMånedligeUdgifter[[#Headers],[Januar]]&_ÅR),Andet[Anmodning om datotjek påbegyndt],\"<=\"&D$4)","v":{"v":0,"d":"kr. 0.00"}},{"$f":"SUMIFS(SpecificeredeUdgifter[Checkbeløb],SpecificeredeUdgifter[Kode for regnskabsbog],OversigtOverMånedligeUdgifter[[#This Row],[Kode for regnskabsbog]],SpecificeredeUdgifter[Fakturadato],\">=\"&E$3,SpecificeredeUdgifter[Fakturadato],\"<=\"&E$4)+SUMIFS(Andet[Checkbeløb],Andet[Kode for regnskabsbog],OversigtOverMånedligeUdgifter[[#This Row],[Kode for regnskabsbog]],Andet[Anmodning om datotjek påbegyndt],\">=\"&DATEVALUE(\" 1 \"&OversigtOverMånedligeUdgifter[[#Headers],[Februar]]&_ÅR),Andet[Anmodning om datotjek påbegyndt],\"<=\"&E$4)","v":{"v":0,"d":"kr. 0.00"}},{"$f":"SUMIFS(SpecificeredeUdgifter[Checkbeløb],SpecificeredeUdgifter[Kode for regnskabsbog],OversigtOverMånedligeUdgifter[[#This Row],[Kode for regnskabsbog]],SpecificeredeUdgifter[Fakturadato],\">=\"&F$3,SpecificeredeUdgifter[Fakturadato],\"<=\"&F$4)+SUMIFS(Andet[Checkbeløb],Andet[Kode for regnskabsbog],OversigtOverMånedligeUdgifter[[#This Row],[Kode for regnskabsbog]],Andet[Anmodning om datotjek påbegyndt],\">=\"&DATEVALUE(\" 1 \"&OversigtOverMånedligeUdgifter[[#Headers],[Marts]]&_ÅR),Andet[Anmodning om datotjek påbegyndt],\"<=\"&F$4)","v":{"v":0,"d":"kr. 0.00"}},{"$f":"SUMIFS(SpecificeredeUdgifter[Checkbeløb],SpecificeredeUdgifter[Kode for regnskabsbog],OversigtOverMånedligeUdgifter[[#This Row],[Kode for regnskabsbog]],SpecificeredeUdgifter[Fakturadato],\">=\"&G$3,SpecificeredeUdgifter[Fakturadato],\"<=\"&G$4)+SUMIFS(Andet[Checkbeløb],Andet[Kode for regnskabsbog],OversigtOverMånedligeUdgifter[[#This Row],[Kode for regnskabsbog]],Andet[Anmodning om datotjek påbegyndt],\">=\"&DATEVALUE(\" 1 \"&OversigtOverMånedligeUdgifter[[#Headers],[April]]&_ÅR),Andet[Anmodning om datotjek påbegyndt],\"<=\"&G$4)","v":{"v":0,"d":"kr. 0.00"}},{"$f":"SUMIFS(SpecificeredeUdgifter[Checkbeløb],SpecificeredeUdgifter[Kode for regnskabsbog],OversigtOverMånedligeUdgifter[[#This Row],[Kode for regnskabsbog]],SpecificeredeUdgifter[Fakturadato],\">=\"&H$3,SpecificeredeUdgifter[Fakturadato],\"<=\"&H$4)+SUMIFS(Andet[Checkbeløb],Andet[Kode for regnskabsbog],OversigtOverMånedligeUdgifter[[#This Row],[Kode for regnskabsbog]],Andet[Anmodning om datotjek påbegyndt],\">=\"&DATEVALUE(\" 1 \"&OversigtOverMånedligeUdgifter[[#Headers],[Maj]]&_ÅR),Andet[Anmodning om datotjek påbegyndt],\"<=\"&H$4)","v":{"v":0,"d":"kr. 0.00"}},{"$f":"SUMIFS(SpecificeredeUdgifter[Checkbeløb],SpecificeredeUdgifter[Kode for regnskabsbog],OversigtOverMånedligeUdgifter[[#This Row],[Kode for regnskabsbog]],SpecificeredeUdgifter[Fakturadato],\">=\"&I$3,SpecificeredeUdgifter[Fakturadato],\"<=\"&I$4)+SUMIFS(Andet[Checkbeløb],Andet[Kode for regnskabsbog],OversigtOverMånedligeUdgifter[[#This Row],[Kode for regnskabsbog]],Andet[Anmodning om datotjek påbegyndt],\">=\"&DATEVALUE(\" 1 \"&OversigtOverMånedligeUdgifter[[#Headers],[Juni]]&_ÅR),Andet[Anmodning om datotjek påbegyndt],\"<=\"&I$4)","v":{"v":0,"d":"kr. 0.00"}},{"$f":"SUMIFS(SpecificeredeUdgifter[Checkbeløb],SpecificeredeUdgifter[Kode for regnskabsbog],OversigtOverMånedligeUdgifter[[#This Row],[Kode for regnskabsbog]],SpecificeredeUdgifter[Fakturadato],\">=\"&J$3,SpecificeredeUdgifter[Fakturadato],\"<=\"&J$4)+SUMIFS(Andet[Checkbeløb],Andet[Kode for regnskabsbog],OversigtOverMånedligeUdgifter[[#This Row],[Kode for regnskabsbog]],Andet[Anmodning om datotjek påbegyndt],\">=\"&DATEVALUE(\" 1 \"&OversigtOverMånedligeUdgifter[[#Headers],[Juli]]&_ÅR),Andet[Anmodning om datotjek påbegyndt],\"<=\"&J$4)","v":{"v":0,"d":"kr. 0.00"}},{"$f":"SUMIFS(SpecificeredeUdgifter[Checkbeløb],SpecificeredeUdgifter[Kode for regnskabsbog],OversigtOverMånedligeUdgifter[[#This Row],[Kode for regnskabsbog]],SpecificeredeUdgifter[Fakturadato],\">=\"&K$3,SpecificeredeUdgifter[Fakturadato],\"<=\"&K$4)+SUMIFS(Andet[Checkbeløb],Andet[Kode for regnskabsbog],OversigtOverMånedligeUdgifter[[#This Row],[Kode for regnskabsbog]],Andet[Anmodning om datotjek påbegyndt],\">=\"&DATEVALUE(\" 1 \"&OversigtOverMånedligeUdgifter[[#Headers],[August]]&_ÅR),Andet[Anmodning om datotjek påbegyndt],\"<=\"&K$4)","v":{"v":0,"d":"kr. 0.00"}},{"$f":"SUMIFS(SpecificeredeUdgifter[Checkbeløb],SpecificeredeUdgifter[Kode for regnskabsbog],OversigtOverMånedligeUdgifter[[#This Row],[Kode for regnskabsbog]],SpecificeredeUdgifter[Fakturadato],\">=\"&L$3,SpecificeredeUdgifter[Fakturadato],\"<=\"&L$4)+SUMIFS(Andet[Checkbeløb],Andet[Kode for regnskabsbog],OversigtOverMånedligeUdgifter[[#This Row],[Kode for regnskabsbog]],Andet[Anmodning om datotjek påbegyndt],\">=\"&DATEVALUE(\" 1 \"&OversigtOverMånedligeUdgifter[[#Headers],[September]]&_ÅR),Andet[Anmodning om datotjek påbegyndt],\"<=\"&L$4)","v":{"v":0,"d":"kr. 0.00"}},{"$f":"SUMIFS(SpecificeredeUdgifter[Checkbeløb],SpecificeredeUdgifter[Kode for regnskabsbog],OversigtOverMånedligeUdgifter[[#This Row],[Kode for regnskabsbog]],SpecificeredeUdgifter[Fakturadato],\">=\"&M$3,SpecificeredeUdgifter[Fakturadato],\"<=\"&M$4)+SUMIFS(Andet[Checkbeløb],Andet[Kode for regnskabsbog],OversigtOverMånedligeUdgifter[[#This Row],[Kode for regnskabsbog]],Andet[Anmodning om datotjek påbegyndt],\">=\"&DATEVALUE(\" 1 \"&OversigtOverMånedligeUdgifter[[#Headers],[Oktober]]&_ÅR),Andet[Anmodning om datotjek påbegyndt],\"<=\"&M$4)","v":{"v":0,"d":"kr. 0.00"}},{"$f":"SUMIFS(SpecificeredeUdgifter[Checkbeløb],SpecificeredeUdgifter[Kode for regnskabsbog],OversigtOverMånedligeUdgifter[[#This Row],[Kode for regnskabsbog]],SpecificeredeUdgifter[Fakturadato],\">=\"&N$3,SpecificeredeUdgifter[Fakturadato],\"<=\"&N$4)+SUMIFS(Andet[Checkbeløb],Andet[Kode for regnskabsbog],OversigtOverMånedligeUdgifter[[#This Row],[Kode for regnskabsbog]],Andet[Anmodning om datotjek påbegyndt],\">=\"&DATEVALUE(\" 1 \"&OversigtOverMånedligeUdgifter[[#Headers],[November]]&_ÅR),Andet[Anmodning om datotjek påbegyndt],\"<=\"&N$4)","v":{"v":0,"d":"kr. 0.00"}},{"$f":"SUMIFS(SpecificeredeUdgifter[Checkbeløb],SpecificeredeUdgifter[Kode for regnskabsbog],OversigtOverMånedligeUdgifter[[#This Row],[Kode for regnskabsbog]],SpecificeredeUdgifter[Fakturadato],\">=\"&O$3,SpecificeredeUdgifter[Fakturadato],\"<=\"&O$4)+SUMIFS(Andet[Checkbeløb],Andet[Kode for regnskabsbog],OversigtOverMånedligeUdgifter[[#This Row],[Kode for regnskabsbog]],Andet[Anmodning om datotjek påbegyndt],\">=\"&DATEVALUE(\" 1 \"&OversigtOverMånedligeUdgifter[[#Headers],[December]]&_ÅR),Andet[Anmodning om datotjek påbegyndt],\"<=\"&O$4)","v":{"v":0,"d":"kr. 0.00"}},{"$f":"SUM(OversigtOverMånedligeUdgifter[[#This Row],[Januar]:[December]])","v":{"v":0,"d":"kr. 0.00"}}]
[null,5000,"Forsyninger",{"$f":"SUMIFS(SpecificeredeUdgifter[Checkbeløb],SpecificeredeUdgifter[Kode for regnskabsbog],OversigtOverMånedligeUdgifter[[#This Row],[Kode for regnskabsbog]],SpecificeredeUdgifter[Fakturadato],\">=\"&D$3,SpecificeredeUdgifter[Fakturadato],\"<=\"&D$4)+SUMIFS(Andet[Checkbeløb],Andet[Kode for regnskabsbog],OversigtOverMånedligeUdgifter[[#This Row],[Kode for regnskabsbog]],Andet[Anmodning om datotjek påbegyndt],\">=\"&DATEVALUE(\" 1 \"&OversigtOverMånedligeUdgifter[[#Headers],[Januar]]&_ÅR),Andet[Anmodning om datotjek påbegyndt],\"<=\"&D$4)","v":{"v":0,"d":"kr. 0.00"}},{"$f":"SUMIFS(SpecificeredeUdgifter[Checkbeløb],SpecificeredeUdgifter[Kode for regnskabsbog],OversigtOverMånedligeUdgifter[[#This Row],[Kode for regnskabsbog]],SpecificeredeUdgifter[Fakturadato],\">=\"&E$3,SpecificeredeUdgifter[Fakturadato],\"<=\"&E$4)+SUMIFS(Andet[Checkbeløb],Andet[Kode for regnskabsbog],OversigtOverMånedligeUdgifter[[#This Row],[Kode for regnskabsbog]],Andet[Anmodning om datotjek påbegyndt],\">=\"&DATEVALUE(\" 1 \"&OversigtOverMånedligeUdgifter[[#Headers],[Februar]]&_ÅR),Andet[Anmodning om datotjek påbegyndt],\"<=\"&E$4)","v":{"v":0,"d":"kr. 0.00"}},{"$f":"SUMIFS(SpecificeredeUdgifter[Checkbeløb],SpecificeredeUdgifter[Kode for regnskabsbog],OversigtOverMånedligeUdgifter[[#This Row],[Kode for regnskabsbog]],SpecificeredeUdgifter[Fakturadato],\">=\"&F$3,SpecificeredeUdgifter[Fakturadato],\"<=\"&F$4)+SUMIFS(Andet[Checkbeløb],Andet[Kode for regnskabsbog],OversigtOverMånedligeUdgifter[[#This Row],[Kode for regnskabsbog]],Andet[Anmodning om datotjek påbegyndt],\">=\"&DATEVALUE(\" 1 \"&OversigtOverMånedligeUdgifter[[#Headers],[Marts]]&_ÅR),Andet[Anmodning om datotjek påbegyndt],\"<=\"&F$4)","v":{"v":0,"d":"kr. 0.00"}},{"$f":"SUMIFS(SpecificeredeUdgifter[Checkbeløb],SpecificeredeUdgifter[Kode for regnskabsbog],OversigtOverMånedligeUdgifter[[#This Row],[Kode for regnskabsbog]],SpecificeredeUdgifter[Fakturadato],\">=\"&G$3,SpecificeredeUdgifter[Fakturadato],\"<=\"&G$4)+SUMIFS(Andet[Checkbeløb],Andet[Kode for regnskabsbog],OversigtOverMånedligeUdgifter[[#This Row],[Kode for regnskabsbog]],Andet[Anmodning om datotjek påbegyndt],\">=\"&DATEVALUE(\" 1 \"&OversigtOverMånedligeUdgifter[[#Headers],[April]]&_ÅR),Andet[Anmodning om datotjek påbegyndt],\"<=\"&G$4)","v":{"v":0,"d":"kr. 0.00"}},{"$f":"SUMIFS(SpecificeredeUdgifter[Checkbeløb],SpecificeredeUdgifter[Kode for regnskabsbog],OversigtOverMånedligeUdgifter[[#This Row],[Kode for regnskabsbog]],SpecificeredeUdgifter[Fakturadato],\">=\"&H$3,SpecificeredeUdgifter[Fakturadato],\"<=\"&H$4)+SUMIFS(Andet[Checkbeløb],Andet[Kode for regnskabsbog],OversigtOverMånedligeUdgifter[[#This Row],[Kode for regnskabsbog]],Andet[Anmodning om datotjek påbegyndt],\">=\"&DATEVALUE(\" 1 \"&OversigtOverMånedligeUdgifter[[#Headers],[Maj]]&_ÅR),Andet[Anmodning om datotjek påbegyndt],\"<=\"&H$4)","v":{"v":0,"d":"kr. 0.00"}},{"$f":"SUMIFS(SpecificeredeUdgifter[Checkbeløb],SpecificeredeUdgifter[Kode for regnskabsbog],OversigtOverMånedligeUdgifter[[#This Row],[Kode for regnskabsbog]],SpecificeredeUdgifter[Fakturadato],\">=\"&I$3,SpecificeredeUdgifter[Fakturadato],\"<=\"&I$4)+SUMIFS(Andet[Checkbeløb],Andet[Kode for regnskabsbog],OversigtOverMånedligeUdgifter[[#This Row],[Kode for regnskabsbog]],Andet[Anmodning om datotjek påbegyndt],\">=\"&DATEVALUE(\" 1 \"&OversigtOverMånedligeUdgifter[[#Headers],[Juni]]&_ÅR),Andet[Anmodning om datotjek påbegyndt],\"<=\"&I$4)","v":{"v":0,"d":"kr. 0.00"}},{"$f":"SUMIFS(SpecificeredeUdgifter[Checkbeløb],SpecificeredeUdgifter[Kode for regnskabsbog],OversigtOverMånedligeUdgifter[[#This Row],[Kode for regnskabsbog]],SpecificeredeUdgifter[Fakturadato],\">=\"&J$3,SpecificeredeUdgifter[Fakturadato],\"<=\"&J$4)+SUMIFS(Andet[Checkbeløb],Andet[Kode for regnskabsbog],OversigtOverMånedligeUdgifter[[#This Row],[Kode for regnskabsbog]],Andet[Anmodning om datotjek påbegyndt],\">=\"&DATEVALUE(\" 1 \"&OversigtOverMånedligeUdgifter[[#Headers],[Juli]]&_ÅR),Andet[Anmodning om datotjek påbegyndt],\"<=\"&J$4)","v":{"v":0,"d":"kr. 0.00"}},{"$f":"SUMIFS(SpecificeredeUdgifter[Checkbeløb],SpecificeredeUdgifter[Kode for regnskabsbog],OversigtOverMånedligeUdgifter[[#This Row],[Kode for regnskabsbog]],SpecificeredeUdgifter[Fakturadato],\">=\"&K$3,SpecificeredeUdgifter[Fakturadato],\"<=\"&K$4)+SUMIFS(Andet[Checkbeløb],Andet[Kode for regnskabsbog],OversigtOverMånedligeUdgifter[[#This Row],[Kode for regnskabsbog]],Andet[Anmodning om datotjek påbegyndt],\">=\"&DATEVALUE(\" 1 \"&OversigtOverMånedligeUdgifter[[#Headers],[August]]&_ÅR),Andet[Anmodning om datotjek påbegyndt],\"<=\"&K$4)","v":{"v":0,"d":"kr. 0.00"}},{"$f":"SUMIFS(SpecificeredeUdgifter[Checkbeløb],SpecificeredeUdgifter[Kode for regnskabsbog],OversigtOverMånedligeUdgifter[[#This Row],[Kode for regnskabsbog]],SpecificeredeUdgifter[Fakturadato],\">=\"&L$3,SpecificeredeUdgifter[Fakturadato],\"<=\"&L$4)+SUMIFS(Andet[Checkbeløb],Andet[Kode for regnskabsbog],OversigtOverMånedligeUdgifter[[#This Row],[Kode for regnskabsbog]],Andet[Anmodning om datotjek påbegyndt],\">=\"&DATEVALUE(\" 1 \"&OversigtOverMånedligeUdgifter[[#Headers],[September]]&_ÅR),Andet[Anmodning om datotjek påbegyndt],\"<=\"&L$4)","v":{"v":0,"d":"kr. 0.00"}},{"$f":"SUMIFS(SpecificeredeUdgifter[Checkbeløb],SpecificeredeUdgifter[Kode for regnskabsbog],OversigtOverMånedligeUdgifter[[#This Row],[Kode for regnskabsbog]],SpecificeredeUdgifter[Fakturadato],\">=\"&M$3,SpecificeredeUdgifter[Fakturadato],\"<=\"&M$4)+SUMIFS(Andet[Checkbeløb],Andet[Kode for regnskabsbog],OversigtOverMånedligeUdgifter[[#This Row],[Kode for regnskabsbog]],Andet[Anmodning om datotjek påbegyndt],\">=\"&DATEVALUE(\" 1 \"&OversigtOverMånedligeUdgifter[[#Headers],[Oktober]]&_ÅR),Andet[Anmodning om datotjek påbegyndt],\"<=\"&M$4)","v":{"v":0,"d":"kr. 0.00"}},{"$f":"SUMIFS(SpecificeredeUdgifter[Checkbeløb],SpecificeredeUdgifter[Kode for regnskabsbog],OversigtOverMånedligeUdgifter[[#This Row],[Kode for regnskabsbog]],SpecificeredeUdgifter[Fakturadato],\">=\"&N$3,SpecificeredeUdgifter[Fakturadato],\"<=\"&N$4)+SUMIFS(Andet[Checkbeløb],Andet[Kode for regnskabsbog],OversigtOverMånedligeUdgifter[[#This Row],[Kode for regnskabsbog]],Andet[Anmodning om datotjek påbegyndt],\">=\"&DATEVALUE(\" 1 \"&OversigtOverMånedligeUdgifter[[#Headers],[November]]&_ÅR),Andet[Anmodning om datotjek påbegyndt],\"<=\"&N$4)","v":{"v":0,"d":"kr. 0.00"}},{"$f":"SUMIFS(SpecificeredeUdgifter[Checkbeløb],SpecificeredeUdgifter[Kode for regnskabsbog],OversigtOverMånedligeUdgifter[[#This Row],[Kode for regnskabsbog]],SpecificeredeUdgifter[Fakturadato],\">=\"&O$3,SpecificeredeUdgifter[Fakturadato],\"<=\"&O$4)+SUMIFS(Andet[Checkbeløb],Andet[Kode for regnskabsbog],OversigtOverMånedligeUdgifter[[#This Row],[Kode for regnskabsbog]],Andet[Anmodning om datotjek påbegyndt],\">=\"&DATEVALUE(\" 1 \"&OversigtOverMånedligeUdgifter[[#Headers],[December]]&_ÅR),Andet[Anmodning om datotjek påbegyndt],\"<=\"&O$4)","v":{"v":0,"d":"kr. 0.00"}},{"$f":"SUM(OversigtOverMånedligeUdgifter[[#This Row],[Januar]:[December]])","v":{"v":0,"d":"kr. 0.00"}}]
[null,6000,"Kundeudgifter",{"$f":"SUMIFS(SpecificeredeUdgifter[Checkbeløb],SpecificeredeUdgifter[Kode for regnskabsbog],OversigtOverMånedligeUdgifter[[#This Row],[Kode for regnskabsbog]],SpecificeredeUdgifter[Fakturadato],\">=\"&D$3,SpecificeredeUdgifter[Fakturadato],\"<=\"&D$4)+SUMIFS(Andet[Checkbeløb],Andet[Kode for regnskabsbog],OversigtOverMånedligeUdgifter[[#This Row],[Kode for regnskabsbog]],Andet[Anmodning om datotjek påbegyndt],\">=\"&DATEVALUE(\" 1 \"&OversigtOverMånedligeUdgifter[[#Headers],[Januar]]&_ÅR),Andet[Anmodning om datotjek påbegyndt],\"<=\"&D$4)","v":{"v":0,"d":"kr. 0.00"}},{"$f":"SUMIFS(SpecificeredeUdgifter[Checkbeløb],SpecificeredeUdgifter[Kode for regnskabsbog],OversigtOverMånedligeUdgifter[[#This Row],[Kode for regnskabsbog]],SpecificeredeUdgifter[Fakturadato],\">=\"&E$3,SpecificeredeUdgifter[Fakturadato],\"<=\"&E$4)+SUMIFS(Andet[Checkbeløb],Andet[Kode for regnskabsbog],OversigtOverMånedligeUdgifter[[#This Row],[Kode for regnskabsbog]],Andet[Anmodning om datotjek påbegyndt],\">=\"&DATEVALUE(\" 1 \"&OversigtOverMånedligeUdgifter[[#Headers],[Februar]]&_ÅR),Andet[Anmodning om datotjek påbegyndt],\"<=\"&E$4)","v":{"v":0,"d":"kr. 0.00"}},{"$f":"SUMIFS(SpecificeredeUdgifter[Checkbeløb],SpecificeredeUdgifter[Kode for regnskabsbog],OversigtOverMånedligeUdgifter[[#This Row],[Kode for regnskabsbog]],SpecificeredeUdgifter[Fakturadato],\">=\"&F$3,SpecificeredeUdgifter[Fakturadato],\"<=\"&F$4)+SUMIFS(Andet[Checkbeløb],Andet[Kode for regnskabsbog],OversigtOverMånedligeUdgifter[[#This Row],[Kode for regnskabsbog]],Andet[Anmodning om datotjek påbegyndt],\">=\"&DATEVALUE(\" 1 \"&OversigtOverMånedligeUdgifter[[#Headers],[Marts]]&_ÅR),Andet[Anmodning om datotjek påbegyndt],\"<=\"&F$4)","v":{"v":0,"d":"kr. 0.00"}},{"$f":"SUMIFS(SpecificeredeUdgifter[Checkbeløb],SpecificeredeUdgifter[Kode for regnskabsbog],OversigtOverMånedligeUdgifter[[#This Row],[Kode for regnskabsbog]],SpecificeredeUdgifter[Fakturadato],\">=\"&G$3,SpecificeredeUdgifter[Fakturadato],\"<=\"&G$4)+SUMIFS(Andet[Checkbeløb],Andet[Kode for regnskabsbog],OversigtOverMånedligeUdgifter[[#This Row],[Kode for regnskabsbog]],Andet[Anmodning om datotjek påbegyndt],\">=\"&DATEVALUE(\" 1 \"&OversigtOverMånedligeUdgifter[[#Headers],[April]]&_ÅR),Andet[Anmodning om datotjek påbegyndt],\"<=\"&G$4)","v":{"v":0,"d":"kr. 0.00"}},{"$f":"SUMIFS(SpecificeredeUdgifter[Checkbeløb],SpecificeredeUdgifter[Kode for regnskabsbog],OversigtOverMånedligeUdgifter[[#This Row],[Kode for regnskabsbog]],SpecificeredeUdgifter[Fakturadato],\">=\"&H$3,SpecificeredeUdgifter[Fakturadato],\"<=\"&H$4)+SUMIFS(Andet[Checkbeløb],Andet[Kode for regnskabsbog],OversigtOverMånedligeUdgifter[[#This Row],[Kode for regnskabsbog]],Andet[Anmodning om datotjek påbegyndt],\">=\"&DATEVALUE(\" 1 \"&OversigtOverMånedligeUdgifter[[#Headers],[Maj]]&_ÅR),Andet[Anmodning om datotjek påbegyndt],\"<=\"&H$4)","v":{"v":0,"d":"kr. 0.00"}},{"$f":"SUMIFS(SpecificeredeUdgifter[Checkbeløb],SpecificeredeUdgifter[Kode for regnskabsbog],OversigtOverMånedligeUdgifter[[#This Row],[Kode for regnskabsbog]],SpecificeredeUdgifter[Fakturadato],\">=\"&I$3,SpecificeredeUdgifter[Fakturadato],\"<=\"&I$4)+SUMIFS(Andet[Checkbeløb],Andet[Kode for regnskabsbog],OversigtOverMånedligeUdgifter[[#This Row],[Kode for regnskabsbog]],Andet[Anmodning om datotjek påbegyndt],\">=\"&DATEVALUE(\" 1 \"&OversigtOverMånedligeUdgifter[[#Headers],[Juni]]&_ÅR),Andet[Anmodning om datotjek påbegyndt],\"<=\"&I$4)","v":{"v":0,"d":"kr. 0.00"}},{"$f":"SUMIFS(SpecificeredeUdgifter[Checkbeløb],SpecificeredeUdgifter[Kode for regnskabsbog],OversigtOverMånedligeUdgifter[[#This Row],[Kode for regnskabsbog]],SpecificeredeUdgifter[Fakturadato],\">=\"&J$3,SpecificeredeUdgifter[Fakturadato],\"<=\"&J$4)+SUMIFS(Andet[Checkbeløb],Andet[Kode for regnskabsbog],OversigtOverMånedligeUdgifter[[#This Row],[Kode for regnskabsbog]],Andet[Anmodning om datotjek påbegyndt],\">=\"&DATEVALUE(\" 1 \"&OversigtOverMånedligeUdgifter[[#Headers],[Juli]]&_ÅR),Andet[Anmodning om datotjek påbegyndt],\"<=\"&J$4)","v":{"v":0,"d":"kr. 0.00"}},{"$f":"SUMIFS(SpecificeredeUdgifter[Checkbeløb],SpecificeredeUdgifter[Kode for regnskabsbog],OversigtOverMånedligeUdgifter[[#This Row],[Kode for regnskabsbog]],SpecificeredeUdgifter[Fakturadato],\">=\"&K$3,SpecificeredeUdgifter[Fakturadato],\"<=\"&K$4)+SUMIFS(Andet[Checkbeløb],Andet[Kode for regnskabsbog],OversigtOverMånedligeUdgifter[[#This Row],[Kode for regnskabsbog]],Andet[Anmodning om datotjek påbegyndt],\">=\"&DATEVALUE(\" 1 \"&OversigtOverMånedligeUdgifter[[#Headers],[August]]&_ÅR),Andet[Anmodning om datotjek påbegyndt],\"<=\"&K$4)","v":{"v":0,"d":"kr. 0.00"}},{"$f":"SUMIFS(SpecificeredeUdgifter[Checkbeløb],SpecificeredeUdgifter[Kode for regnskabsbog],OversigtOverMånedligeUdgifter[[#This Row],[Kode for regnskabsbog]],SpecificeredeUdgifter[Fakturadato],\">=\"&L$3,SpecificeredeUdgifter[Fakturadato],\"<=\"&L$4)+SUMIFS(Andet[Checkbeløb],Andet[Kode for regnskabsbog],OversigtOverMånedligeUdgifter[[#This Row],[Kode for regnskabsbog]],Andet[Anmodning om datotjek påbegyndt],\">=\"&DATEVALUE(\" 1 \"&OversigtOverMånedligeUdgifter[[#Headers],[September]]&_ÅR),Andet[Anmodning om datotjek påbegyndt],\"<=\"&L$4)","v":{"v":0,"d":"kr. 0.00"}},{"$f":"SUMIFS(SpecificeredeUdgifter[Checkbeløb],SpecificeredeUdgifter[Kode for regnskabsbog],OversigtOverMånedligeUdgifter[[#This Row],[Kode for regnskabsbog]],SpecificeredeUdgifter[Fakturadato],\">=\"&M$3,SpecificeredeUdgifter[Fakturadato],\"<=\"&M$4)+SUMIFS(Andet[Checkbeløb],Andet[Kode for regnskabsbog],OversigtOverMånedligeUdgifter[[#This Row],[Kode for regnskabsbog]],Andet[Anmodning om datotjek påbegyndt],\">=\"&DATEVALUE(\" 1 \"&OversigtOverMånedligeUdgifter[[#Headers],[Oktober]]&_ÅR),Andet[Anmodning om datotjek påbegyndt],\"<=\"&M$4)","v":{"v":0,"d":"kr. 0.00"}},{"$f":"SUMIFS(SpecificeredeUdgifter[Checkbeløb],SpecificeredeUdgifter[Kode for regnskabsbog],OversigtOverMånedligeUdgifter[[#This Row],[Kode for regnskabsbog]],SpecificeredeUdgifter[Fakturadato],\">=\"&N$3,SpecificeredeUdgifter[Fakturadato],\"<=\"&N$4)+SUMIFS(Andet[Checkbeløb],Andet[Kode for regnskabsbog],OversigtOverMånedligeUdgifter[[#This Row],[Kode for regnskabsbog]],Andet[Anmodning om datotjek påbegyndt],\">=\"&DATEVALUE(\" 1 \"&OversigtOverMånedligeUdgifter[[#Headers],[November]]&_ÅR),Andet[Anmodning om datotjek påbegyndt],\"<=\"&N$4)","v":{"v":0,"d":"kr. 0.00"}},{"$f":"SUMIFS(SpecificeredeUdgifter[Checkbeløb],SpecificeredeUdgifter[Kode for regnskabsbog],OversigtOverMånedligeUdgifter[[#This Row],[Kode for regnskabsbog]],SpecificeredeUdgifter[Fakturadato],\">=\"&O$3,SpecificeredeUdgifter[Fakturadato],\"<=\"&O$4)+SUMIFS(Andet[Checkbeløb],Andet[Kode for regnskabsbog],OversigtOverMånedligeUdgifter[[#This Row],[Kode for regnskabsbog]],Andet[Anmodning om datotjek påbegyndt],\">=\"&DATEVALUE(\" 1 \"&OversigtOverMånedligeUdgifter[[#Headers],[December]]&_ÅR),Andet[Anmodning om datotjek påbegyndt],\"<=\"&O$4)","v":{"v":0,"d":"kr. 0.00"}},{"$f":"SUM(OversigtOverMånedligeUdgifter[[#This Row],[Januar]:[December]])","v":{"v":0,"d":"kr. 0.00"}}]
[null,7000,"Computere",{"$f":"SUMIFS(SpecificeredeUdgifter[Checkbeløb],SpecificeredeUdgifter[Kode for regnskabsbog],OversigtOverMånedligeUdgifter[[#This Row],[Kode for regnskabsbog]],SpecificeredeUdgifter[Fakturadato],\">=\"&D$3,SpecificeredeUdgifter[Fakturadato],\"<=\"&D$4)+SUMIFS(Andet[Checkbeløb],Andet[Kode for regnskabsbog],OversigtOverMånedligeUdgifter[[#This Row],[Kode for regnskabsbog]],Andet[Anmodning om datotjek påbegyndt],\">=\"&DATEVALUE(\" 1 \"&OversigtOverMånedligeUdgifter[[#Headers],[Januar]]&_ÅR),Andet[Anmodning om datotjek påbegyndt],\"<=\"&D$4)","v":{"v":0,"d":"kr. 0.00"}},{"$f":"SUMIFS(SpecificeredeUdgifter[Checkbeløb],SpecificeredeUdgifter[Kode for regnskabsbog],OversigtOverMånedligeUdgifter[[#This Row],[Kode for regnskabsbog]],SpecificeredeUdgifter[Fakturadato],\">=\"&E$3,SpecificeredeUdgifter[Fakturadato],\"<=\"&E$4)+SUMIFS(Andet[Checkbeløb],Andet[Kode for regnskabsbog],OversigtOverMånedligeUdgifter[[#This Row],[Kode for regnskabsbog]],Andet[Anmodning om datotjek påbegyndt],\">=\"&DATEVALUE(\" 1 \"&OversigtOverMånedligeUdgifter[[#Headers],[Februar]]&_ÅR),Andet[Anmodning om datotjek påbegyndt],\"<=\"&E$4)","v":{"v":0,"d":"kr. 0.00"}},{"$f":"SUMIFS(SpecificeredeUdgifter[Checkbeløb],SpecificeredeUdgifter[Kode for regnskabsbog],OversigtOverMånedligeUdgifter[[#This Row],[Kode for regnskabsbog]],SpecificeredeUdgifter[Fakturadato],\">=\"&F$3,SpecificeredeUdgifter[Fakturadato],\"<=\"&F$4)+SUMIFS(Andet[Checkbeløb],Andet[Kode for regnskabsbog],OversigtOverMånedligeUdgifter[[#This Row],[Kode for regnskabsbog]],Andet[Anmodning om datotjek påbegyndt],\">=\"&DATEVALUE(\" 1 \"&OversigtOverMånedligeUdgifter[[#Headers],[Marts]]&_ÅR),Andet[Anmodning om datotjek påbegyndt],\"<=\"&F$4)","v":{"v":0,"d":"kr. 0.00"}},{"$f":"SUMIFS(SpecificeredeUdgifter[Checkbeløb],SpecificeredeUdgifter[Kode for regnskabsbog],OversigtOverMånedligeUdgifter[[#This Row],[Kode for regnskabsbog]],SpecificeredeUdgifter[Fakturadato],\">=\"&G$3,SpecificeredeUdgifter[Fakturadato],\"<=\"&G$4)+SUMIFS(Andet[Checkbeløb],Andet[Kode for regnskabsbog],OversigtOverMånedligeUdgifter[[#This Row],[Kode for regnskabsbog]],Andet[Anmodning om datotjek påbegyndt],\">=\"&DATEVALUE(\" 1 \"&OversigtOverMånedligeUdgifter[[#Headers],[April]]&_ÅR),Andet[Anmodning om datotjek påbegyndt],\"<=\"&G$4)","v":{"v":0,"d":"kr. 0.00"}},{"$f":"SUMIFS(SpecificeredeUdgifter[Checkbeløb],SpecificeredeUdgifter[Kode for regnskabsbog],OversigtOverMånedligeUdgifter[[#This Row],[Kode for regnskabsbog]],SpecificeredeUdgifter[Fakturadato],\">=\"&H$3,SpecificeredeUdgifter[Fakturadato],\"<=\"&H$4)+SUMIFS(Andet[Checkbeløb],Andet[Kode for regnskabsbog],OversigtOverMånedligeUdgifter[[#This Row],[Kode for regnskabsbog]],Andet[Anmodning om datotjek påbegyndt],\">=\"&DATEVALUE(\" 1 \"&OversigtOverMånedligeUdgifter[[#Headers],[Maj]]&_ÅR),Andet[Anmodning om datotjek påbegyndt],\"<=\"&H$4)","v":{"v":0,"d":"kr. 0.00"}},{"$f":"SUMIFS(SpecificeredeUdgifter[Checkbeløb],SpecificeredeUdgifter[Kode for regnskabsbog],OversigtOverMånedligeUdgifter[[#This Row],[Kode for regnskabsbog]],SpecificeredeUdgifter[Fakturadato],\">=\"&I$3,SpecificeredeUdgifter[Fakturadato],\"<=\"&I$4)+SUMIFS(Andet[Checkbeløb],Andet[Kode for regnskabsbog],OversigtOverMånedligeUdgifter[[#This Row],[Kode for regnskabsbog]],Andet[Anmodning om datotjek påbegyndt],\">=\"&DATEVALUE(\" 1 \"&OversigtOverMånedligeUdgifter[[#Headers],[Juni]]&_ÅR),Andet[Anmodning om datotjek påbegyndt],\"<=\"&I$4)","v":{"v":0,"d":"kr. 0.00"}},{"$f":"SUMIFS(SpecificeredeUdgifter[Checkbeløb],SpecificeredeUdgifter[Kode for regnskabsbog],OversigtOverMånedligeUdgifter[[#This Row],[Kode for regnskabsbog]],SpecificeredeUdgifter[Fakturadato],\">=\"&J$3,SpecificeredeUdgifter[Fakturadato],\"<=\"&J$4)+SUMIFS(Andet[Checkbeløb],Andet[Kode for regnskabsbog],OversigtOverMånedligeUdgifter[[#This Row],[Kode for regnskabsbog]],Andet[Anmodning om datotjek påbegyndt],\">=\"&DATEVALUE(\" 1 \"&OversigtOverMånedligeUdgifter[[#Headers],[Juli]]&_ÅR),Andet[Anmodning om datotjek påbegyndt],\"<=\"&J$4)","v":{"v":0,"d":"kr. 0.00"}},{"$f":"SUMIFS(SpecificeredeUdgifter[Checkbeløb],SpecificeredeUdgifter[Kode for regnskabsbog],OversigtOverMånedligeUdgifter[[#This Row],[Kode for regnskabsbog]],SpecificeredeUdgifter[Fakturadato],\">=\"&K$3,SpecificeredeUdgifter[Fakturadato],\"<=\"&K$4)+SUMIFS(Andet[Checkbeløb],Andet[Kode for regnskabsbog],OversigtOverMånedligeUdgifter[[#This Row],[Kode for regnskabsbog]],Andet[Anmodning om datotjek påbegyndt],\">=\"&DATEVALUE(\" 1 \"&OversigtOverMånedligeUdgifter[[#Headers],[August]]&_ÅR),Andet[Anmodning om datotjek påbegyndt],\"<=\"&K$4)","v":{"v":0,"d":"kr. 0.00"}},{"$f":"SUMIFS(SpecificeredeUdgifter[Checkbeløb],SpecificeredeUdgifter[Kode for regnskabsbog],OversigtOverMånedligeUdgifter[[#This Row],[Kode for regnskabsbog]],SpecificeredeUdgifter[Fakturadato],\">=\"&L$3,SpecificeredeUdgifter[Fakturadato],\"<=\"&L$4)+SUMIFS(Andet[Checkbeløb],Andet[Kode for regnskabsbog],OversigtOverMånedligeUdgifter[[#This Row],[Kode for regnskabsbog]],Andet[Anmodning om datotjek påbegyndt],\">=\"&DATEVALUE(\" 1 \"&OversigtOverMånedligeUdgifter[[#Headers],[September]]&_ÅR),Andet[Anmodning om datotjek påbegyndt],\"<=\"&L$4)","v":{"v":0,"d":"kr. 0.00"}},{"$f":"SUMIFS(SpecificeredeUdgifter[Checkbeløb],SpecificeredeUdgifter[Kode for regnskabsbog],OversigtOverMånedligeUdgifter[[#This Row],[Kode for regnskabsbog]],SpecificeredeUdgifter[Fakturadato],\">=\"&M$3,SpecificeredeUdgifter[Fakturadato],\"<=\"&M$4)+SUMIFS(Andet[Checkbeløb],Andet[Kode for regnskabsbog],OversigtOverMånedligeUdgifter[[#This Row],[Kode for regnskabsbog]],Andet[Anmodning om datotjek påbegyndt],\">=\"&DATEVALUE(\" 1 \"&OversigtOverMånedligeUdgifter[[#Headers],[Oktober]]&_ÅR),Andet[Anmodning om datotjek påbegyndt],\"<=\"&M$4)","v":{"v":0,"d":"kr. 0.00"}},{"$f":"SUMIFS(SpecificeredeUdgifter[Checkbeløb],SpecificeredeUdgifter[Kode for regnskabsbog],OversigtOverMånedligeUdgifter[[#This Row],[Kode for regnskabsbog]],SpecificeredeUdgifter[Fakturadato],\">=\"&N$3,SpecificeredeUdgifter[Fakturadato],\"<=\"&N$4)+SUMIFS(Andet[Checkbeløb],Andet[Kode for regnskabsbog],OversigtOverMånedligeUdgifter[[#This Row],[Kode for regnskabsbog]],Andet[Anmodning om datotjek påbegyndt],\">=\"&DATEVALUE(\" 1 \"&OversigtOverMånedligeUdgifter[[#Headers],[November]]&_ÅR),Andet[Anmodning om datotjek påbegyndt],\"<=\"&N$4)","v":{"v":0,"d":"kr. 0.00"}},{"$f":"SUMIFS(SpecificeredeUdgifter[Checkbeløb],SpecificeredeUdgifter[Kode for regnskabsbog],OversigtOverMånedligeUdgifter[[#This Row],[Kode for regnskabsbog]],SpecificeredeUdgifter[Fakturadato],\">=\"&O$3,SpecificeredeUdgifter[Fakturadato],\"<=\"&O$4)+SUMIFS(Andet[Checkbeløb],Andet[Kode for regnskabsbog],OversigtOverMånedligeUdgifter[[#This Row],[Kode for regnskabsbog]],Andet[Anmodning om datotjek påbegyndt],\">=\"&DATEVALUE(\" 1 \"&OversigtOverMånedligeUdgifter[[#Headers],[December]]&_ÅR),Andet[Anmodning om datotjek påbegyndt],\"<=\"&O$4)","v":{"v":0,"d":"kr. 0.00"}},{"$f":"SUM(OversigtOverMånedligeUdgifter[[#This Row],[Januar]:[December]])","v":{"v":0,"d":"kr. 0.00"}}]
[null,8000,"Sundhedsordning",{"$f":"SUMIFS(SpecificeredeUdgifter[Checkbeløb],SpecificeredeUdgifter[Kode for regnskabsbog],OversigtOverMånedligeUdgifter[[#This Row],[Kode for regnskabsbog]],SpecificeredeUdgifter[Fakturadato],\">=\"&D$3,SpecificeredeUdgifter[Fakturadato],\"<=\"&D$4)+SUMIFS(Andet[Checkbeløb],Andet[Kode for regnskabsbog],OversigtOverMånedligeUdgifter[[#This Row],[Kode for regnskabsbog]],Andet[Anmodning om datotjek påbegyndt],\">=\"&DATEVALUE(\" 1 \"&OversigtOverMånedligeUdgifter[[#Headers],[Januar]]&_ÅR),Andet[Anmodning om datotjek påbegyndt],\"<=\"&D$4)","v":{"v":0,"d":"kr. 0.00"}},{"$f":"SUMIFS(SpecificeredeUdgifter[Checkbeløb],SpecificeredeUdgifter[Kode for regnskabsbog],OversigtOverMånedligeUdgifter[[#This Row],[Kode for regnskabsbog]],SpecificeredeUdgifter[Fakturadato],\">=\"&E$3,SpecificeredeUdgifter[Fakturadato],\"<=\"&E$4)+SUMIFS(Andet[Checkbeløb],Andet[Kode for regnskabsbog],OversigtOverMånedligeUdgifter[[#This Row],[Kode for regnskabsbog]],Andet[Anmodning om datotjek påbegyndt],\">=\"&DATEVALUE(\" 1 \"&OversigtOverMånedligeUdgifter[[#Headers],[Februar]]&_ÅR),Andet[Anmodning om datotjek påbegyndt],\"<=\"&E$4)","v":{"v":0,"d":"kr. 0.00"}},{"$f":"SUMIFS(SpecificeredeUdgifter[Checkbeløb],SpecificeredeUdgifter[Kode for regnskabsbog],OversigtOverMånedligeUdgifter[[#This Row],[Kode for regnskabsbog]],SpecificeredeUdgifter[Fakturadato],\">=\"&F$3,SpecificeredeUdgifter[Fakturadato],\"<=\"&F$4)+SUMIFS(Andet[Checkbeløb],Andet[Kode for regnskabsbog],OversigtOverMånedligeUdgifter[[#This Row],[Kode for regnskabsbog]],Andet[Anmodning om datotjek påbegyndt],\">=\"&DATEVALUE(\" 1 \"&OversigtOverMånedligeUdgifter[[#Headers],[Marts]]&_ÅR),Andet[Anmodning om datotjek påbegyndt],\"<=\"&F$4)","v":{"v":0,"d":"kr. 0.00"}},{"$f":"SUMIFS(SpecificeredeUdgifter[Checkbeløb],SpecificeredeUdgifter[Kode for regnskabsbog],OversigtOverMånedligeUdgifter[[#This Row],[Kode for regnskabsbog]],SpecificeredeUdgifter[Fakturadato],\">=\"&G$3,SpecificeredeUdgifter[Fakturadato],\"<=\"&G$4)+SUMIFS(Andet[Checkbeløb],Andet[Kode for regnskabsbog],OversigtOverMånedligeUdgifter[[#This Row],[Kode for regnskabsbog]],Andet[Anmodning om datotjek påbegyndt],\">=\"&DATEVALUE(\" 1 \"&OversigtOverMånedligeUdgifter[[#Headers],[April]]&_ÅR),Andet[Anmodning om datotjek påbegyndt],\"<=\"&G$4)","v":{"v":0,"d":"kr. 0.00"}},{"$f":"SUMIFS(SpecificeredeUdgifter[Checkbeløb],SpecificeredeUdgifter[Kode for regnskabsbog],OversigtOverMånedligeUdgifter[[#This Row],[Kode for regnskabsbog]],SpecificeredeUdgifter[Fakturadato],\">=\"&H$3,SpecificeredeUdgifter[Fakturadato],\"<=\"&H$4)+SUMIFS(Andet[Checkbeløb],Andet[Kode for regnskabsbog],OversigtOverMånedligeUdgifter[[#This Row],[Kode for regnskabsbog]],Andet[Anmodning om datotjek påbegyndt],\">=\"&DATEVALUE(\" 1 \"&OversigtOverMånedligeUdgifter[[#Headers],[Maj]]&_ÅR),Andet[Anmodning om datotjek påbegyndt],\"<=\"&H$4)","v":{"v":0,"d":"kr. 0.00"}},{"$f":"SUMIFS(SpecificeredeUdgifter[Checkbeløb],SpecificeredeUdgifter[Kode for regnskabsbog],OversigtOverMånedligeUdgifter[[#This Row],[Kode for regnskabsbog]],SpecificeredeUdgifter[Fakturadato],\">=\"&I$3,SpecificeredeUdgifter[Fakturadato],\"<=\"&I$4)+SUMIFS(Andet[Checkbeløb],Andet[Kode for regnskabsbog],OversigtOverMånedligeUdgifter[[#This Row],[Kode for regnskabsbog]],Andet[Anmodning om datotjek påbegyndt],\">=\"&DATEVALUE(\" 1 \"&OversigtOverMånedligeUdgifter[[#Headers],[Juni]]&_ÅR),Andet[Anmodning om datotjek påbegyndt],\"<=\"&I$4)","v":{"v":0,"d":"kr. 0.00"}},{"$f":"SUMIFS(SpecificeredeUdgifter[Checkbeløb],SpecificeredeUdgifter[Kode for regnskabsbog],OversigtOverMånedligeUdgifter[[#This Row],[Kode for regnskabsbog]],SpecificeredeUdgifter[Fakturadato],\">=\"&J$3,SpecificeredeUdgifter[Fakturadato],\"<=\"&J$4)+SUMIFS(Andet[Checkbeløb],Andet[Kode for regnskabsbog],OversigtOverMånedligeUdgifter[[#This Row],[Kode for regnskabsbog]],Andet[Anmodning om datotjek påbegyndt],\">=\"&DATEVALUE(\" 1 \"&OversigtOverMånedligeUdgifter[[#Headers],[Juli]]&_ÅR),Andet[Anmodning om datotjek påbegyndt],\"<=\"&J$4)","v":{"v":0,"d":"kr. 0.00"}},{"$f":"SUMIFS(SpecificeredeUdgifter[Checkbeløb],SpecificeredeUdgifter[Kode for regnskabsbog],OversigtOverMånedligeUdgifter[[#This Row],[Kode for regnskabsbog]],SpecificeredeUdgifter[Fakturadato],\">=\"&K$3,SpecificeredeUdgifter[Fakturadato],\"<=\"&K$4)+SUMIFS(Andet[Checkbeløb],Andet[Kode for regnskabsbog],OversigtOverMånedligeUdgifter[[#This Row],[Kode for regnskabsbog]],Andet[Anmodning om datotjek påbegyndt],\">=\"&DATEVALUE(\" 1 \"&OversigtOverMånedligeUdgifter[[#Headers],[August]]&_ÅR),Andet[Anmodning om datotjek påbegyndt],\"<=\"&K$4)","v":{"v":0,"d":"kr. 0.00"}},{"$f":"SUMIFS(SpecificeredeUdgifter[Checkbeløb],SpecificeredeUdgifter[Kode for regnskabsbog],OversigtOverMånedligeUdgifter[[#This Row],[Kode for regnskabsbog]],SpecificeredeUdgifter[Fakturadato],\">=\"&L$3,SpecificeredeUdgifter[Fakturadato],\"<=\"&L$4)+SUMIFS(Andet[Checkbeløb],Andet[Kode for regnskabsbog],OversigtOverMånedligeUdgifter[[#This Row],[Kode for regnskabsbog]],Andet[Anmodning om datotjek påbegyndt],\">=\"&DATEVALUE(\" 1 \"&OversigtOverMånedligeUdgifter[[#Headers],[September]]&_ÅR),Andet[Anmodning om datotjek påbegyndt],\"<=\"&L$4)","v":{"v":0,"d":"kr. 0.00"}},{"$f":"SUMIFS(SpecificeredeUdgifter[Checkbeløb],SpecificeredeUdgifter[Kode for regnskabsbog],OversigtOverMånedligeUdgifter[[#This Row],[Kode for regnskabsbog]],SpecificeredeUdgifter[Fakturadato],\">=\"&M$3,SpecificeredeUdgifter[Fakturadato],\"<=\"&M$4)+SUMIFS(Andet[Checkbeløb],Andet[Kode for regnskabsbog],OversigtOverMånedligeUdgifter[[#This Row],[Kode for regnskabsbog]],Andet[Anmodning om datotjek påbegyndt],\">=\"&DATEVALUE(\" 1 \"&OversigtOverMånedligeUdgifter[[#Headers],[Oktober]]&_ÅR),Andet[Anmodning om datotjek påbegyndt],\"<=\"&M$4)","v":{"v":0,"d":"kr. 0.00"}},{"$f":"SUMIFS(SpecificeredeUdgifter[Checkbeløb],SpecificeredeUdgifter[Kode for regnskabsbog],OversigtOverMånedligeUdgifter[[#This Row],[Kode for regnskabsbog]],SpecificeredeUdgifter[Fakturadato],\">=\"&N$3,SpecificeredeUdgifter[Fakturadato],\"<=\"&N$4)+SUMIFS(Andet[Checkbeløb],Andet[Kode for regnskabsbog],OversigtOverMånedligeUdgifter[[#This Row],[Kode for regnskabsbog]],Andet[Anmodning om datotjek påbegyndt],\">=\"&DATEVALUE(\" 1 \"&OversigtOverMånedligeUdgifter[[#Headers],[November]]&_ÅR),Andet[Anmodning om datotjek påbegyndt],\"<=\"&N$4)","v":{"v":0,"d":"kr. 0.00"}},{"$f":"SUMIFS(SpecificeredeUdgifter[Checkbeløb],SpecificeredeUdgifter[Kode for regnskabsbog],OversigtOverMånedligeUdgifter[[#This Row],[Kode for regnskabsbog]],SpecificeredeUdgifter[Fakturadato],\">=\"&O$3,SpecificeredeUdgifter[Fakturadato],\"<=\"&O$4)+SUMIFS(Andet[Checkbeløb],Andet[Kode for regnskabsbog],OversigtOverMånedligeUdgifter[[#This Row],[Kode for regnskabsbog]],Andet[Anmodning om datotjek påbegyndt],\">=\"&DATEVALUE(\" 1 \"&OversigtOverMånedligeUdgifter[[#Headers],[December]]&_ÅR),Andet[Anmodning om datotjek påbegyndt],\"<=\"&O$4)","v":{"v":0,"d":"kr. 0.00"}},{"$f":"SUM(OversigtOverMånedligeUdgifter[[#This Row],[Januar]:[December]])","v":{"v":0,"d":"kr. 0.00"}}]
[null,9000,"Byggeomkostninger",{"$f":"SUMIFS(SpecificeredeUdgifter[Checkbeløb],SpecificeredeUdgifter[Kode for regnskabsbog],OversigtOverMånedligeUdgifter[[#This Row],[Kode for regnskabsbog]],SpecificeredeUdgifter[Fakturadato],\">=\"&D$3,SpecificeredeUdgifter[Fakturadato],\"<=\"&D$4)+SUMIFS(Andet[Checkbeløb],Andet[Kode for regnskabsbog],OversigtOverMånedligeUdgifter[[#This Row],[Kode for regnskabsbog]],Andet[Anmodning om datotjek påbegyndt],\">=\"&DATEVALUE(\" 1 \"&OversigtOverMånedligeUdgifter[[#Headers],[Januar]]&_ÅR),Andet[Anmodning om datotjek påbegyndt],\"<=\"&D$4)","v":{"v":0,"d":"kr. 0.00"}},{"$f":"SUMIFS(SpecificeredeUdgifter[Checkbeløb],SpecificeredeUdgifter[Kode for regnskabsbog],OversigtOverMånedligeUdgifter[[#This Row],[Kode for regnskabsbog]],SpecificeredeUdgifter[Fakturadato],\">=\"&E$3,SpecificeredeUdgifter[Fakturadato],\"<=\"&E$4)+SUMIFS(Andet[Checkbeløb],Andet[Kode for regnskabsbog],OversigtOverMånedligeUdgifter[[#This Row],[Kode for regnskabsbog]],Andet[Anmodning om datotjek påbegyndt],\">=\"&DATEVALUE(\" 1 \"&OversigtOverMånedligeUdgifter[[#Headers],[Februar]]&_ÅR),Andet[Anmodning om datotjek påbegyndt],\"<=\"&E$4)","v":{"v":0,"d":"kr. 0.00"}},{"$f":"SUMIFS(SpecificeredeUdgifter[Checkbeløb],SpecificeredeUdgifter[Kode for regnskabsbog],OversigtOverMånedligeUdgifter[[#This Row],[Kode for regnskabsbog]],SpecificeredeUdgifter[Fakturadato],\">=\"&F$3,SpecificeredeUdgifter[Fakturadato],\"<=\"&F$4)+SUMIFS(Andet[Checkbeløb],Andet[Kode for regnskabsbog],OversigtOverMånedligeUdgifter[[#This Row],[Kode for regnskabsbog]],Andet[Anmodning om datotjek påbegyndt],\">=\"&DATEVALUE(\" 1 \"&OversigtOverMånedligeUdgifter[[#Headers],[Marts]]&_ÅR),Andet[Anmodning om datotjek påbegyndt],\"<=\"&F$4)","v":{"v":0,"d":"kr. 0.00"}},{"$f":"SUMIFS(SpecificeredeUdgifter[Checkbeløb],SpecificeredeUdgifter[Kode for regnskabsbog],OversigtOverMånedligeUdgifter[[#This Row],[Kode for regnskabsbog]],SpecificeredeUdgifter[Fakturadato],\">=\"&G$3,SpecificeredeUdgifter[Fakturadato],\"<=\"&G$4)+SUMIFS(Andet[Checkbeløb],Andet[Kode for regnskabsbog],OversigtOverMånedligeUdgifter[[#This Row],[Kode for regnskabsbog]],Andet[Anmodning om datotjek påbegyndt],\">=\"&DATEVALUE(\" 1 \"&OversigtOverMånedligeUdgifter[[#Headers],[April]]&_ÅR),Andet[Anmodning om datotjek påbegyndt],\"<=\"&G$4)","v":{"v":0,"d":"kr. 0.00"}},{"$f":"SUMIFS(SpecificeredeUdgifter[Checkbeløb],SpecificeredeUdgifter[Kode for regnskabsbog],OversigtOverMånedligeUdgifter[[#This Row],[Kode for regnskabsbog]],SpecificeredeUdgifter[Fakturadato],\">=\"&H$3,SpecificeredeUdgifter[Fakturadato],\"<=\"&H$4)+SUMIFS(Andet[Checkbeløb],Andet[Kode for regnskabsbog],OversigtOverMånedligeUdgifter[[#This Row],[Kode for regnskabsbog]],Andet[Anmodning om datotjek påbegyndt],\">=\"&DATEVALUE(\" 1 \"&OversigtOverMånedligeUdgifter[[#Headers],[Maj]]&_ÅR),Andet[Anmodning om datotjek påbegyndt],\"<=\"&H$4)","v":{"v":0,"d":"kr. 0.00"}},{"$f":"SUMIFS(SpecificeredeUdgifter[Checkbeløb],SpecificeredeUdgifter[Kode for regnskabsbog],OversigtOverMånedligeUdgifter[[#This Row],[Kode for regnskabsbog]],SpecificeredeUdgifter[Fakturadato],\">=\"&I$3,SpecificeredeUdgifter[Fakturadato],\"<=\"&I$4)+SUMIFS(Andet[Checkbeløb],Andet[Kode for regnskabsbog],OversigtOverMånedligeUdgifter[[#This Row],[Kode for regnskabsbog]],Andet[Anmodning om datotjek påbegyndt],\">=\"&DATEVALUE(\" 1 \"&OversigtOverMånedligeUdgifter[[#Headers],[Juni]]&_ÅR),Andet[Anmodning om datotjek påbegyndt],\"<=\"&I$4)","v":{"v":0,"d":"kr. 0.00"}},{"$f":"SUMIFS(SpecificeredeUdgifter[Checkbeløb],SpecificeredeUdgifter[Kode for regnskabsbog],OversigtOverMånedligeUdgifter[[#This Row],[Kode for regnskabsbog]],SpecificeredeUdgifter[Fakturadato],\">=\"&J$3,SpecificeredeUdgifter[Fakturadato],\"<=\"&J$4)+SUMIFS(Andet[Checkbeløb],Andet[Kode for regnskabsbog],OversigtOverMånedligeUdgifter[[#This Row],[Kode for regnskabsbog]],Andet[Anmodning om datotjek påbegyndt],\">=\"&DATEVALUE(\" 1 \"&OversigtOverMånedligeUdgifter[[#Headers],[Juli]]&_ÅR),Andet[Anmodning om datotjek påbegyndt],\"<=\"&J$4)","v":{"v":0,"d":"kr. 0.00"}},{"$f":"SUMIFS(SpecificeredeUdgifter[Checkbeløb],SpecificeredeUdgifter[Kode for regnskabsbog],OversigtOverMånedligeUdgifter[[#This Row],[Kode for regnskabsbog]],SpecificeredeUdgifter[Fakturadato],\">=\"&K$3,SpecificeredeUdgifter[Fakturadato],\"<=\"&K$4)+SUMIFS(Andet[Checkbeløb],Andet[Kode for regnskabsbog],OversigtOverMånedligeUdgifter[[#This Row],[Kode for regnskabsbog]],Andet[Anmodning om datotjek påbegyndt],\">=\"&DATEVALUE(\" 1 \"&OversigtOverMånedligeUdgifter[[#Headers],[August]]&_ÅR),Andet[Anmodning om datotjek påbegyndt],\"<=\"&K$4)","v":{"v":0,"d":"kr. 0.00"}},{"$f":"SUMIFS(SpecificeredeUdgifter[Checkbeløb],SpecificeredeUdgifter[Kode for regnskabsbog],OversigtOverMånedligeUdgifter[[#This Row],[Kode for regnskabsbog]],SpecificeredeUdgifter[Fakturadato],\">=\"&L$3,SpecificeredeUdgifter[Fakturadato],\"<=\"&L$4)+SUMIFS(Andet[Checkbeløb],Andet[Kode for regnskabsbog],OversigtOverMånedligeUdgifter[[#This Row],[Kode for regnskabsbog]],Andet[Anmodning om datotjek påbegyndt],\">=\"&DATEVALUE(\" 1 \"&OversigtOverMånedligeUdgifter[[#Headers],[September]]&_ÅR),Andet[Anmodning om datotjek påbegyndt],\"<=\"&L$4)","v":{"v":0,"d":"kr. 0.00"}},{"$f":"SUMIFS(SpecificeredeUdgifter[Checkbeløb],SpecificeredeUdgifter[Kode for regnskabsbog],OversigtOverMånedligeUdgifter[[#This Row],[Kode for regnskabsbog]],SpecificeredeUdgifter[Fakturadato],\">=\"&M$3,SpecificeredeUdgifter[Fakturadato],\"<=\"&M$4)+SUMIFS(Andet[Checkbeløb],Andet[Kode for regnskabsbog],OversigtOverMånedligeUdgifter[[#This Row],[Kode for regnskabsbog]],Andet[Anmodning om datotjek påbegyndt],\">=\"&DATEVALUE(\" 1 \"&OversigtOverMånedligeUdgifter[[#Headers],[Oktober]]&_ÅR),Andet[Anmodning om datotjek påbegyndt],\"<=\"&M$4)","v":{"v":0,"d":"kr. 0.00"}},{"$f":"SUMIFS(SpecificeredeUdgifter[Checkbeløb],SpecificeredeUdgifter[Kode for regnskabsbog],OversigtOverMånedligeUdgifter[[#This Row],[Kode for regnskabsbog]],SpecificeredeUdgifter[Fakturadato],\">=\"&N$3,SpecificeredeUdgifter[Fakturadato],\"<=\"&N$4)+SUMIFS(Andet[Checkbeløb],Andet[Kode for regnskabsbog],OversigtOverMånedligeUdgifter[[#This Row],[Kode for regnskabsbog]],Andet[Anmodning om datotjek påbegyndt],\">=\"&DATEVALUE(\" 1 \"&OversigtOverMånedligeUdgifter[[#Headers],[November]]&_ÅR),Andet[Anmodning om datotjek påbegyndt],\"<=\"&N$4)","v":{"v":0,"d":"kr. 0.00"}},{"$f":"SUMIFS(SpecificeredeUdgifter[Checkbeløb],SpecificeredeUdgifter[Kode for regnskabsbog],OversigtOverMånedligeUdgifter[[#This Row],[Kode for regnskabsbog]],SpecificeredeUdgifter[Fakturadato],\">=\"&O$3,SpecificeredeUdgifter[Fakturadato],\"<=\"&O$4)+SUMIFS(Andet[Checkbeløb],Andet[Kode for regnskabsbog],OversigtOverMånedligeUdgifter[[#This Row],[Kode for regnskabsbog]],Andet[Anmodning om datotjek påbegyndt],\">=\"&DATEVALUE(\" 1 \"&OversigtOverMånedligeUdgifter[[#Headers],[December]]&_ÅR),Andet[Anmodning om datotjek påbegyndt],\"<=\"&O$4)","v":{"v":0,"d":"kr. 0.00"}},{"$f":"SUM(OversigtOverMånedligeUdgifter[[#This Row],[Januar]:[December]])","v":{"v":0,"d":"kr. 0.00"}}]
[null,10000,"Marketing",{"$f":"SUMIFS(SpecificeredeUdgifter[Checkbeløb],SpecificeredeUdgifter[Kode for regnskabsbog],OversigtOverMånedligeUdgifter[[#This Row],[Kode for regnskabsbog]],SpecificeredeUdgifter[Fakturadato],\">=\"&D$3,SpecificeredeUdgifter[Fakturadato],\"<=\"&D$4)+SUMIFS(Andet[Checkbeløb],Andet[Kode for regnskabsbog],OversigtOverMånedligeUdgifter[[#This Row],[Kode for regnskabsbog]],Andet[Anmodning om datotjek påbegyndt],\">=\"&DATEVALUE(\" 1 \"&OversigtOverMånedligeUdgifter[[#Headers],[Januar]]&_ÅR),Andet[Anmodning om datotjek påbegyndt],\"<=\"&D$4)","v":{"v":0,"d":"kr. 0.00"}},{"$f":"SUMIFS(SpecificeredeUdgifter[Checkbeløb],SpecificeredeUdgifter[Kode for regnskabsbog],OversigtOverMånedligeUdgifter[[#This Row],[Kode for regnskabsbog]],SpecificeredeUdgifter[Fakturadato],\">=\"&E$3,SpecificeredeUdgifter[Fakturadato],\"<=\"&E$4)+SUMIFS(Andet[Checkbeløb],Andet[Kode for regnskabsbog],OversigtOverMånedligeUdgifter[[#This Row],[Kode for regnskabsbog]],Andet[Anmodning om datotjek påbegyndt],\">=\"&DATEVALUE(\" 1 \"&OversigtOverMånedligeUdgifter[[#Headers],[Februar]]&_ÅR),Andet[Anmodning om datotjek påbegyndt],\"<=\"&E$4)","v":{"v":0,"d":"kr. 0.00"}},{"$f":"SUMIFS(SpecificeredeUdgifter[Checkbeløb],SpecificeredeUdgifter[Kode for regnskabsbog],OversigtOverMånedligeUdgifter[[#This Row],[Kode for regnskabsbog]],SpecificeredeUdgifter[Fakturadato],\">=\"&F$3,SpecificeredeUdgifter[Fakturadato],\"<=\"&F$4)+SUMIFS(Andet[Checkbeløb],Andet[Kode for regnskabsbog],OversigtOverMånedligeUdgifter[[#This Row],[Kode for regnskabsbog]],Andet[Anmodning om datotjek påbegyndt],\">=\"&DATEVALUE(\" 1 \"&OversigtOverMånedligeUdgifter[[#Headers],[Marts]]&_ÅR),Andet[Anmodning om datotjek påbegyndt],\"<=\"&F$4)","v":{"v":0,"d":"kr. 0.00"}},{"$f":"SUMIFS(SpecificeredeUdgifter[Checkbeløb],SpecificeredeUdgifter[Kode for regnskabsbog],OversigtOverMånedligeUdgifter[[#This Row],[Kode for regnskabsbog]],SpecificeredeUdgifter[Fakturadato],\">=\"&G$3,SpecificeredeUdgifter[Fakturadato],\"<=\"&G$4)+SUMIFS(Andet[Checkbeløb],Andet[Kode for regnskabsbog],OversigtOverMånedligeUdgifter[[#This Row],[Kode for regnskabsbog]],Andet[Anmodning om datotjek påbegyndt],\">=\"&DATEVALUE(\" 1 \"&OversigtOverMånedligeUdgifter[[#Headers],[April]]&_ÅR),Andet[Anmodning om datotjek påbegyndt],\"<=\"&G$4)","v":{"v":0,"d":"kr. 0.00"}},{"$f":"SUMIFS(SpecificeredeUdgifter[Checkbeløb],SpecificeredeUdgifter[Kode for regnskabsbog],OversigtOverMånedligeUdgifter[[#This Row],[Kode for regnskabsbog]],SpecificeredeUdgifter[Fakturadato],\">=\"&H$3,SpecificeredeUdgifter[Fakturadato],\"<=\"&H$4)+SUMIFS(Andet[Checkbeløb],Andet[Kode for regnskabsbog],OversigtOverMånedligeUdgifter[[#This Row],[Kode for regnskabsbog]],Andet[Anmodning om datotjek påbegyndt],\">=\"&DATEVALUE(\" 1 \"&OversigtOverMånedligeUdgifter[[#Headers],[Maj]]&_ÅR),Andet[Anmodning om datotjek påbegyndt],\"<=\"&H$4)","v":{"v":0,"d":"kr. 0.00"}},{"$f":"SUMIFS(SpecificeredeUdgifter[Checkbeløb],SpecificeredeUdgifter[Kode for regnskabsbog],OversigtOverMånedligeUdgifter[[#This Row],[Kode for regnskabsbog]],SpecificeredeUdgifter[Fakturadato],\">=\"&I$3,SpecificeredeUdgifter[Fakturadato],\"<=\"&I$4)+SUMIFS(Andet[Checkbeløb],Andet[Kode for regnskabsbog],OversigtOverMånedligeUdgifter[[#This Row],[Kode for regnskabsbog]],Andet[Anmodning om datotjek påbegyndt],\">=\"&DATEVALUE(\" 1 \"&OversigtOverMånedligeUdgifter[[#Headers],[Juni]]&_ÅR),Andet[Anmodning om datotjek påbegyndt],\"<=\"&I$4)","v":{"v":0,"d":"kr. 0.00"}},{"$f":"SUMIFS(SpecificeredeUdgifter[Checkbeløb],SpecificeredeUdgifter[Kode for regnskabsbog],OversigtOverMånedligeUdgifter[[#This Row],[Kode for regnskabsbog]],SpecificeredeUdgifter[Fakturadato],\">=\"&J$3,SpecificeredeUdgifter[Fakturadato],\"<=\"&J$4)+SUMIFS(Andet[Checkbeløb],Andet[Kode for regnskabsbog],OversigtOverMånedligeUdgifter[[#This Row],[Kode for regnskabsbog]],Andet[Anmodning om datotjek påbegyndt],\">=\"&DATEVALUE(\" 1 \"&OversigtOverMånedligeUdgifter[[#Headers],[Juli]]&_ÅR),Andet[Anmodning om datotjek påbegyndt],\"<=\"&J$4)","v":{"v":0,"d":"kr. 0.00"}},{"$f":"SUMIFS(SpecificeredeUdgifter[Checkbeløb],SpecificeredeUdgifter[Kode for regnskabsbog],OversigtOverMånedligeUdgifter[[#This Row],[Kode for regnskabsbog]],SpecificeredeUdgifter[Fakturadato],\">=\"&K$3,SpecificeredeUdgifter[Fakturadato],\"<=\"&K$4)+SUMIFS(Andet[Checkbeløb],Andet[Kode for regnskabsbog],OversigtOverMånedligeUdgifter[[#This Row],[Kode for regnskabsbog]],Andet[Anmodning om datotjek påbegyndt],\">=\"&DATEVALUE(\" 1 \"&OversigtOverMånedligeUdgifter[[#Headers],[August]]&_ÅR),Andet[Anmodning om datotjek påbegyndt],\"<=\"&K$4)","v":{"v":0,"d":"kr. 0.00"}},{"$f":"SUMIFS(SpecificeredeUdgifter[Checkbeløb],SpecificeredeUdgifter[Kode for regnskabsbog],OversigtOverMånedligeUdgifter[[#This Row],[Kode for regnskabsbog]],SpecificeredeUdgifter[Fakturadato],\">=\"&L$3,SpecificeredeUdgifter[Fakturadato],\"<=\"&L$4)+SUMIFS(Andet[Checkbeløb],Andet[Kode for regnskabsbog],OversigtOverMånedligeUdgifter[[#This Row],[Kode for regnskabsbog]],Andet[Anmodning om datotjek påbegyndt],\">=\"&DATEVALUE(\" 1 \"&OversigtOverMånedligeUdgifter[[#Headers],[September]]&_ÅR),Andet[Anmodning om datotjek påbegyndt],\"<=\"&L$4)","v":{"v":0,"d":"kr. 0.00"}},{"$f":"SUMIFS(SpecificeredeUdgifter[Checkbeløb],SpecificeredeUdgifter[Kode for regnskabsbog],OversigtOverMånedligeUdgifter[[#This Row],[Kode for regnskabsbog]],SpecificeredeUdgifter[Fakturadato],\">=\"&M$3,SpecificeredeUdgifter[Fakturadato],\"<=\"&M$4)+SUMIFS(Andet[Checkbeløb],Andet[Kode for regnskabsbog],OversigtOverMånedligeUdgifter[[#This Row],[Kode for regnskabsbog]],Andet[Anmodning om datotjek påbegyndt],\">=\"&DATEVALUE(\" 1 \"&OversigtOverMånedligeUdgifter[[#Headers],[Oktober]]&_ÅR),Andet[Anmodning om datotjek påbegyndt],\"<=\"&M$4)","v":{"v":0,"d":"kr. 0.00"}},{"$f":"SUMIFS(SpecificeredeUdgifter[Checkbeløb],SpecificeredeUdgifter[Kode for regnskabsbog],OversigtOverMånedligeUdgifter[[#This Row],[Kode for regnskabsbog]],SpecificeredeUdgifter[Fakturadato],\">=\"&N$3,SpecificeredeUdgifter[Fakturadato],\"<=\"&N$4)+SUMIFS(Andet[Checkbeløb],Andet[Kode for regnskabsbog],OversigtOverMånedligeUdgifter[[#This Row],[Kode for regnskabsbog]],Andet[Anmodning om datotjek påbegyndt],\">=\"&DATEVALUE(\" 1 \"&OversigtOverMånedligeUdgifter[[#Headers],[November]]&_ÅR),Andet[Anmodning om datotjek påbegyndt],\"<=\"&N$4)","v":{"v":0,"d":"kr. 0.00"}},{"$f":"SUMIFS(SpecificeredeUdgifter[Checkbeløb],SpecificeredeUdgifter[Kode for regnskabsbog],OversigtOverMånedligeUdgifter[[#This Row],[Kode for regnskabsbog]],SpecificeredeUdgifter[Fakturadato],\">=\"&O$3,SpecificeredeUdgifter[Fakturadato],\"<=\"&O$4)+SUMIFS(Andet[Checkbeløb],Andet[Kode for regnskabsbog],OversigtOverMånedligeUdgifter[[#This Row],[Kode for regnskabsbog]],Andet[Anmodning om datotjek påbegyndt],\">=\"&DATEVALUE(\" 1 \"&OversigtOverMånedligeUdgifter[[#Headers],[December]]&_ÅR),Andet[Anmodning om datotjek påbegyndt],\"<=\"&O$4)","v":{"v":0,"d":"kr. 0.00"}},{"$f":"SUM(OversigtOverMånedligeUdgifter[[#This Row],[Januar]:[December]])","v":{"v":0,"d":"kr. 0.00"}}]
[null,11000,"Velgørenhed",{"$f":"SUMIFS(SpecificeredeUdgifter[Checkbeløb],SpecificeredeUdgifter[Kode for regnskabsbog],OversigtOverMånedligeUdgifter[[#This Row],[Kode for regnskabsbog]],SpecificeredeUdgifter[Fakturadato],\">=\"&D$3,SpecificeredeUdgifter[Fakturadato],\"<=\"&D$4)+SUMIFS(Andet[Checkbeløb],Andet[Kode for regnskabsbog],OversigtOverMånedligeUdgifter[[#This Row],[Kode for regnskabsbog]],Andet[Anmodning om datotjek påbegyndt],\">=\"&DATEVALUE(\" 1 \"&OversigtOverMånedligeUdgifter[[#Headers],[Januar]]&_ÅR),Andet[Anmodning om datotjek påbegyndt],\"<=\"&D$4)","v":{"v":0,"d":"kr. 0.00"}},{"$f":"SUMIFS(SpecificeredeUdgifter[Checkbeløb],SpecificeredeUdgifter[Kode for regnskabsbog],OversigtOverMånedligeUdgifter[[#This Row],[Kode for regnskabsbog]],SpecificeredeUdgifter[Fakturadato],\">=\"&E$3,SpecificeredeUdgifter[Fakturadato],\"<=\"&E$4)+SUMIFS(Andet[Checkbeløb],Andet[Kode for regnskabsbog],OversigtOverMånedligeUdgifter[[#This Row],[Kode for regnskabsbog]],Andet[Anmodning om datotjek påbegyndt],\">=\"&DATEVALUE(\" 1 \"&OversigtOverMånedligeUdgifter[[#Headers],[Februar]]&_ÅR),Andet[Anmodning om datotjek påbegyndt],\"<=\"&E$4)","v":{"v":0,"d":"kr. 0.00"}},{"$f":"SUMIFS(SpecificeredeUdgifter[Checkbeløb],SpecificeredeUdgifter[Kode for regnskabsbog],OversigtOverMånedligeUdgifter[[#This Row],[Kode for regnskabsbog]],SpecificeredeUdgifter[Fakturadato],\">=\"&F$3,SpecificeredeUdgifter[Fakturadato],\"<=\"&F$4)+SUMIFS(Andet[Checkbeløb],Andet[Kode for regnskabsbog],OversigtOverMånedligeUdgifter[[#This Row],[Kode for regnskabsbog]],Andet[Anmodning om datotjek påbegyndt],\">=\"&DATEVALUE(\" 1 \"&OversigtOverMånedligeUdgifter[[#Headers],[Marts]]&_ÅR),Andet[Anmodning om datotjek påbegyndt],\"<=\"&F$4)","v":{"v":0,"d":"kr. 0.00"}},{"$f":"SUMIFS(SpecificeredeUdgifter[Checkbeløb],SpecificeredeUdgifter[Kode for regnskabsbog],OversigtOverMånedligeUdgifter[[#This Row],[Kode for regnskabsbog]],SpecificeredeUdgifter[Fakturadato],\">=\"&G$3,SpecificeredeUdgifter[Fakturadato],\"<=\"&G$4)+SUMIFS(Andet[Checkbeløb],Andet[Kode for regnskabsbog],OversigtOverMånedligeUdgifter[[#This Row],[Kode for regnskabsbog]],Andet[Anmodning om datotjek påbegyndt],\">=\"&DATEVALUE(\" 1 \"&OversigtOverMånedligeUdgifter[[#Headers],[April]]&_ÅR),Andet[Anmodning om datotjek påbegyndt],\"<=\"&G$4)","v":{"v":0,"d":"kr. 0.00"}},{"$f":"SUMIFS(SpecificeredeUdgifter[Checkbeløb],SpecificeredeUdgifter[Kode for regnskabsbog],OversigtOverMånedligeUdgifter[[#This Row],[Kode for regnskabsbog]],SpecificeredeUdgifter[Fakturadato],\">=\"&H$3,SpecificeredeUdgifter[Fakturadato],\"<=\"&H$4)+SUMIFS(Andet[Checkbeløb],Andet[Kode for regnskabsbog],OversigtOverMånedligeUdgifter[[#This Row],[Kode for regnskabsbog]],Andet[Anmodning om datotjek påbegyndt],\">=\"&DATEVALUE(\" 1 \"&OversigtOverMånedligeUdgifter[[#Headers],[Maj]]&_ÅR),Andet[Anmodning om datotjek påbegyndt],\"<=\"&H$4)","v":{"v":0,"d":"kr. 0.00"}},{"$f":"SUMIFS(SpecificeredeUdgifter[Checkbeløb],SpecificeredeUdgifter[Kode for regnskabsbog],OversigtOverMånedligeUdgifter[[#This Row],[Kode for regnskabsbog]],SpecificeredeUdgifter[Fakturadato],\">=\"&I$3,SpecificeredeUdgifter[Fakturadato],\"<=\"&I$4)+SUMIFS(Andet[Checkbeløb],Andet[Kode for regnskabsbog],OversigtOverMånedligeUdgifter[[#This Row],[Kode for regnskabsbog]],Andet[Anmodning om datotjek påbegyndt],\">=\"&DATEVALUE(\" 1 \"&OversigtOverMånedligeUdgifter[[#Headers],[Juni]]&_ÅR),Andet[Anmodning om datotjek påbegyndt],\"<=\"&I$4)","v":{"v":0,"d":"kr. 0.00"}},{"$f":"SUMIFS(SpecificeredeUdgifter[Checkbeløb],SpecificeredeUdgifter[Kode for regnskabsbog],OversigtOverMånedligeUdgifter[[#This Row],[Kode for regnskabsbog]],SpecificeredeUdgifter[Fakturadato],\">=\"&J$3,SpecificeredeUdgifter[Fakturadato],\"<=\"&J$4)+SUMIFS(Andet[Checkbeløb],Andet[Kode for regnskabsbog],OversigtOverMånedligeUdgifter[[#This Row],[Kode for regnskabsbog]],Andet[Anmodning om datotjek påbegyndt],\">=\"&DATEVALUE(\" 1 \"&OversigtOverMånedligeUdgifter[[#Headers],[Juli]]&_ÅR),Andet[Anmodning om datotjek påbegyndt],\"<=\"&J$4)","v":{"v":0,"d":"kr. 0.00"}},{"$f":"SUMIFS(SpecificeredeUdgifter[Checkbeløb],SpecificeredeUdgifter[Kode for regnskabsbog],OversigtOverMånedligeUdgifter[[#This Row],[Kode for regnskabsbog]],SpecificeredeUdgifter[Fakturadato],\">=\"&K$3,SpecificeredeUdgifter[Fakturadato],\"<=\"&K$4)+SUMIFS(Andet[Checkbeløb],Andet[Kode for regnskabsbog],OversigtOverMånedligeUdgifter[[#This Row],[Kode for regnskabsbog]],Andet[Anmodning om datotjek påbegyndt],\">=\"&DATEVALUE(\" 1 \"&OversigtOverMånedligeUdgifter[[#Headers],[August]]&_ÅR),Andet[Anmodning om datotjek påbegyndt],\"<=\"&K$4)","v":{"v":0,"d":"kr. 0.00"}},{"$f":"SUMIFS(SpecificeredeUdgifter[Checkbeløb],SpecificeredeUdgifter[Kode for regnskabsbog],OversigtOverMånedligeUdgifter[[#This Row],[Kode for regnskabsbog]],SpecificeredeUdgifter[Fakturadato],\">=\"&L$3,SpecificeredeUdgifter[Fakturadato],\"<=\"&L$4)+SUMIFS(Andet[Checkbeløb],Andet[Kode for regnskabsbog],OversigtOverMånedligeUdgifter[[#This Row],[Kode for regnskabsbog]],Andet[Anmodning om datotjek påbegyndt],\">=\"&DATEVALUE(\" 1 \"&OversigtOverMånedligeUdgifter[[#Headers],[September]]&_ÅR),Andet[Anmodning om datotjek påbegyndt],\"<=\"&L$4)","v":{"v":0,"d":"kr. 0.00"}},{"$f":"SUMIFS(SpecificeredeUdgifter[Checkbeløb],SpecificeredeUdgifter[Kode for regnskabsbog],OversigtOverMånedligeUdgifter[[#This Row],[Kode for regnskabsbog]],SpecificeredeUdgifter[Fakturadato],\">=\"&M$3,SpecificeredeUdgifter[Fakturadato],\"<=\"&M$4)+SUMIFS(Andet[Checkbeløb],Andet[Kode for regnskabsbog],OversigtOverMånedligeUdgifter[[#This Row],[Kode for regnskabsbog]],Andet[Anmodning om datotjek påbegyndt],\">=\"&DATEVALUE(\" 1 \"&OversigtOverMånedligeUdgifter[[#Headers],[Oktober]]&_ÅR),Andet[Anmodning om datotjek påbegyndt],\"<=\"&M$4)","v":{"v":0,"d":"kr. 0.00"}},{"$f":"SUMIFS(SpecificeredeUdgifter[Checkbeløb],SpecificeredeUdgifter[Kode for regnskabsbog],OversigtOverMånedligeUdgifter[[#This Row],[Kode for regnskabsbog]],SpecificeredeUdgifter[Fakturadato],\">=\"&N$3,SpecificeredeUdgifter[Fakturadato],\"<=\"&N$4)+SUMIFS(Andet[Checkbeløb],Andet[Kode for regnskabsbog],OversigtOverMånedligeUdgifter[[#This Row],[Kode for regnskabsbog]],Andet[Anmodning om datotjek påbegyndt],\">=\"&DATEVALUE(\" 1 \"&OversigtOverMånedligeUdgifter[[#Headers],[November]]&_ÅR),Andet[Anmodning om datotjek påbegyndt],\"<=\"&N$4)","v":{"v":0,"d":"kr. 0.00"}},{"$f":"SUMIFS(SpecificeredeUdgifter[Checkbeløb],SpecificeredeUdgifter[Kode for regnskabsbog],OversigtOverMånedligeUdgifter[[#This Row],[Kode for regnskabsbog]],SpecificeredeUdgifter[Fakturadato],\">=\"&O$3,SpecificeredeUdgifter[Fakturadato],\"<=\"&O$4)+SUMIFS(Andet[Checkbeløb],Andet[Kode for regnskabsbog],OversigtOverMånedligeUdgifter[[#This Row],[Kode for regnskabsbog]],Andet[Anmodning om datotjek påbegyndt],\">=\"&DATEVALUE(\" 1 \"&OversigtOverMånedligeUdgifter[[#Headers],[December]]&_ÅR),Andet[Anmodning om datotjek påbegyndt],\"<=\"&O$4)","v":{"v":0,"d":"kr. 0.00"}},{"$f":"SUM(OversigtOverMånedligeUdgifter[[#This Row],[Januar]:[December]])","v":{"v":0,"d":"kr. 0.00"}}]
[null,12000,"Sponsorater",{"$f":"SUMIFS(SpecificeredeUdgifter[Checkbeløb],SpecificeredeUdgifter[Kode for regnskabsbog],OversigtOverMånedligeUdgifter[[#This Row],[Kode for regnskabsbog]],SpecificeredeUdgifter[Fakturadato],\">=\"&D$3,SpecificeredeUdgifter[Fakturadato],\"<=\"&D$4)+SUMIFS(Andet[Checkbeløb],Andet[Kode for regnskabsbog],OversigtOverMånedligeUdgifter[[#This Row],[Kode for regnskabsbog]],Andet[Anmodning om datotjek påbegyndt],\">=\"&DATEVALUE(\" 1 \"&OversigtOverMånedligeUdgifter[[#Headers],[Januar]]&_ÅR),Andet[Anmodning om datotjek påbegyndt],\"<=\"&D$4)","v":{"v":0,"d":"kr. 0.00"}},{"$f":"SUMIFS(SpecificeredeUdgifter[Checkbeløb],SpecificeredeUdgifter[Kode for regnskabsbog],OversigtOverMånedligeUdgifter[[#This Row],[Kode for regnskabsbog]],SpecificeredeUdgifter[Fakturadato],\">=\"&E$3,SpecificeredeUdgifter[Fakturadato],\"<=\"&E$4)+SUMIFS(Andet[Checkbeløb],Andet[Kode for regnskabsbog],OversigtOverMånedligeUdgifter[[#This Row],[Kode for regnskabsbog]],Andet[Anmodning om datotjek påbegyndt],\">=\"&DATEVALUE(\" 1 \"&OversigtOverMånedligeUdgifter[[#Headers],[Februar]]&_ÅR),Andet[Anmodning om datotjek påbegyndt],\"<=\"&E$4)","v":{"v":0,"d":"kr. 0.00"}},{"$f":"SUMIFS(SpecificeredeUdgifter[Checkbeløb],SpecificeredeUdgifter[Kode for regnskabsbog],OversigtOverMånedligeUdgifter[[#This Row],[Kode for regnskabsbog]],SpecificeredeUdgifter[Fakturadato],\">=\"&F$3,SpecificeredeUdgifter[Fakturadato],\"<=\"&F$4)+SUMIFS(Andet[Checkbeløb],Andet[Kode for regnskabsbog],OversigtOverMånedligeUdgifter[[#This Row],[Kode for regnskabsbog]],Andet[Anmodning om datotjek påbegyndt],\">=\"&DATEVALUE(\" 1 \"&OversigtOverMånedligeUdgifter[[#Headers],[Marts]]&_ÅR),Andet[Anmodning om datotjek påbegyndt],\"<=\"&F$4)","v":{"v":0,"d":"kr. 0.00"}},{"$f":"SUMIFS(SpecificeredeUdgifter[Checkbeløb],SpecificeredeUdgifter[Kode for regnskabsbog],OversigtOverMånedligeUdgifter[[#This Row],[Kode for regnskabsbog]],SpecificeredeUdgifter[Fakturadato],\">=\"&G$3,SpecificeredeUdgifter[Fakturadato],\"<=\"&G$4)+SUMIFS(Andet[Checkbeløb],Andet[Kode for regnskabsbog],OversigtOverMånedligeUdgifter[[#This Row],[Kode for regnskabsbog]],Andet[Anmodning om datotjek påbegyndt],\">=\"&DATEVALUE(\" 1 \"&OversigtOverMånedligeUdgifter[[#Headers],[April]]&_ÅR),Andet[Anmodning om datotjek påbegyndt],\"<=\"&G$4)","v":{"v":0,"d":"kr. 0.00"}},{"$f":"SUMIFS(SpecificeredeUdgifter[Checkbeløb],SpecificeredeUdgifter[Kode for regnskabsbog],OversigtOverMånedligeUdgifter[[#This Row],[Kode for regnskabsbog]],SpecificeredeUdgifter[Fakturadato],\">=\"&H$3,SpecificeredeUdgifter[Fakturadato],\"<=\"&H$4)+SUMIFS(Andet[Checkbeløb],Andet[Kode for regnskabsbog],OversigtOverMånedligeUdgifter[[#This Row],[Kode for regnskabsbog]],Andet[Anmodning om datotjek påbegyndt],\">=\"&DATEVALUE(\" 1 \"&OversigtOverMånedligeUdgifter[[#Headers],[Maj]]&_ÅR),Andet[Anmodning om datotjek påbegyndt],\"<=\"&H$4)","v":{"v":0,"d":"kr. 0.00"}},{"$f":"SUMIFS(SpecificeredeUdgifter[Checkbeløb],SpecificeredeUdgifter[Kode for regnskabsbog],OversigtOverMånedligeUdgifter[[#This Row],[Kode for regnskabsbog]],SpecificeredeUdgifter[Fakturadato],\">=\"&I$3,SpecificeredeUdgifter[Fakturadato],\"<=\"&I$4)+SUMIFS(Andet[Checkbeløb],Andet[Kode for regnskabsbog],OversigtOverMånedligeUdgifter[[#This Row],[Kode for regnskabsbog]],Andet[Anmodning om datotjek påbegyndt],\">=\"&DATEVALUE(\" 1 \"&OversigtOverMånedligeUdgifter[[#Headers],[Juni]]&_ÅR),Andet[Anmodning om datotjek påbegyndt],\"<=\"&I$4)","v":{"v":0,"d":"kr. 0.00"}},{"$f":"SUMIFS(SpecificeredeUdgifter[Checkbeløb],SpecificeredeUdgifter[Kode for regnskabsbog],OversigtOverMånedligeUdgifter[[#This Row],[Kode for regnskabsbog]],SpecificeredeUdgifter[Fakturadato],\">=\"&J$3,SpecificeredeUdgifter[Fakturadato],\"<=\"&J$4)+SUMIFS(Andet[Checkbeløb],Andet[Kode for regnskabsbog],OversigtOverMånedligeUdgifter[[#This Row],[Kode for regnskabsbog]],Andet[Anmodning om datotjek påbegyndt],\">=\"&DATEVALUE(\" 1 \"&OversigtOverMånedligeUdgifter[[#Headers],[Juli]]&_ÅR),Andet[Anmodning om datotjek påbegyndt],\"<=\"&J$4)","v":{"v":0,"d":"kr. 0.00"}},{"$f":"SUMIFS(SpecificeredeUdgifter[Checkbeløb],SpecificeredeUdgifter[Kode for regnskabsbog],OversigtOverMånedligeUdgifter[[#This Row],[Kode for regnskabsbog]],SpecificeredeUdgifter[Fakturadato],\">=\"&K$3,SpecificeredeUdgifter[Fakturadato],\"<=\"&K$4)+SUMIFS(Andet[Checkbeløb],Andet[Kode for regnskabsbog],OversigtOverMånedligeUdgifter[[#This Row],[Kode for regnskabsbog]],Andet[Anmodning om datotjek påbegyndt],\">=\"&DATEVALUE(\" 1 \"&OversigtOverMånedligeUdgifter[[#Headers],[August]]&_ÅR),Andet[Anmodning om datotjek påbegyndt],\"<=\"&K$4)","v":{"v":0,"d":"kr. 0.00"}},{"$f":"SUMIFS(SpecificeredeUdgifter[Checkbeløb],SpecificeredeUdgifter[Kode for regnskabsbog],OversigtOverMånedligeUdgifter[[#This Row],[Kode for regnskabsbog]],SpecificeredeUdgifter[Fakturadato],\">=\"&L$3,SpecificeredeUdgifter[Fakturadato],\"<=\"&L$4)+SUMIFS(Andet[Checkbeløb],Andet[Kode for regnskabsbog],OversigtOverMånedligeUdgifter[[#This Row],[Kode for regnskabsbog]],Andet[Anmodning om datotjek påbegyndt],\">=\"&DATEVALUE(\" 1 \"&OversigtOverMånedligeUdgifter[[#Headers],[September]]&_ÅR),Andet[Anmodning om datotjek påbegyndt],\"<=\"&L$4)","v":{"v":0,"d":"kr. 0.00"}},{"$f":"SUMIFS(SpecificeredeUdgifter[Checkbeløb],SpecificeredeUdgifter[Kode for regnskabsbog],OversigtOverMånedligeUdgifter[[#This Row],[Kode for regnskabsbog]],SpecificeredeUdgifter[Fakturadato],\">=\"&M$3,SpecificeredeUdgifter[Fakturadato],\"<=\"&M$4)+SUMIFS(Andet[Checkbeløb],Andet[Kode for regnskabsbog],OversigtOverMånedligeUdgifter[[#This Row],[Kode for regnskabsbog]],Andet[Anmodning om datotjek påbegyndt],\">=\"&DATEVALUE(\" 1 \"&OversigtOverMånedligeUdgifter[[#Headers],[Oktober]]&_ÅR),Andet[Anmodning om datotjek påbegyndt],\"<=\"&M$4)","v":{"v":0,"d":"kr. 0.00"}},{"$f":"SUMIFS(SpecificeredeUdgifter[Checkbeløb],SpecificeredeUdgifter[Kode for regnskabsbog],OversigtOverMånedligeUdgifter[[#This Row],[Kode for regnskabsbog]],SpecificeredeUdgifter[Fakturadato],\">=\"&N$3,SpecificeredeUdgifter[Fakturadato],\"<=\"&N$4)+SUMIFS(Andet[Checkbeløb],Andet[Kode for regnskabsbog],OversigtOverMånedligeUdgifter[[#This Row],[Kode for regnskabsbog]],Andet[Anmodning om datotjek påbegyndt],\">=\"&DATEVALUE(\" 1 \"&OversigtOverMånedligeUdgifter[[#Headers],[November]]&_ÅR),Andet[Anmodning om datotjek påbegyndt],\"<=\"&N$4)","v":{"v":0,"d":"kr. 0.00"}},{"$f":"SUMIFS(SpecificeredeUdgifter[Checkbeløb],SpecificeredeUdgifter[Kode for regnskabsbog],OversigtOverMånedligeUdgifter[[#This Row],[Kode for regnskabsbog]],SpecificeredeUdgifter[Fakturadato],\">=\"&O$3,SpecificeredeUdgifter[Fakturadato],\"<=\"&O$4)+SUMIFS(Andet[Checkbeløb],Andet[Kode for regnskabsbog],OversigtOverMånedligeUdgifter[[#This Row],[Kode for regnskabsbog]],Andet[Anmodning om datotjek påbegyndt],\">=\"&DATEVALUE(\" 1 \"&OversigtOverMånedligeUdgifter[[#Headers],[December]]&_ÅR),Andet[Anmodning om datotjek påbegyndt],\"<=\"&O$4)","v":{"v":0,"d":"kr. 0.00"}},{"$f":"SUM(OversigtOverMånedligeUdgifter[[#This Row],[Januar]:[December]])","v":{"v":0,"d":"kr. 0.00"}}]
[null,"Total",null,{"$f":"SUBTOTAL(109,OversigtOverMånedligeUdgifter[Januar])","v":{"v":0,"d":"kr. 0.00"}},{"$f":"SUBTOTAL(109,OversigtOverMånedligeUdgifter[Februar])","v":{"v":0,"d":"kr. 0.00"}},{"$f":"SUBTOTAL(109,OversigtOverMånedligeUdgifter[Marts])","v":{"v":0,"d":"kr. 0.00"}},{"$f":"SUBTOTAL(109,OversigtOverMånedligeUdgifter[April])","v":{"v":0,"d":"kr. 0.00"}},{"$f":"SUBTOTAL(109,OversigtOverMånedligeUdgifter[Maj])","v":{"v":0,"d":"kr. 0.00"}},{"$f":"SUBTOTAL(109,OversigtOverMånedligeUdgifter[Juni])","v":{"v":0,"d":"kr. 0.00"}},{"$f":"SUBTOTAL(109,OversigtOverMånedligeUdgifter[Juli])","v":{"v":0,"d":"kr. 0.00"}},{"$f":"SUBTOTAL(109,OversigtOverMånedligeUdgifter[August])","v":{"v":0,"d":"kr. 0.00"}},{"$f":"SUBTOTAL(109,OversigtOverMånedligeUdgifter[September])","v":{"v":0,"d":"kr. 0.00"}},{"$f":"SUBTOTAL(109,OversigtOverMånedligeUdgifter[Oktober])","v":{"v":0,"d":"kr. 0.00"}},{"$f":"SUBTOTAL(109,OversigtOverMånedligeUdgifter[November])","v":{"v":0,"d":"kr. 0.00"}},{"$f":"SUBTOTAL(109,OversigtOverMånedligeUdgifter[December])","v":{"v":0,"d":"kr. 0.00"}},{"$f":"SUBTOTAL(109,OversigtOverMånedligeUdgifter[Total])","v":{"v":0,"d":"kr. 0.00"}}]

{"sheet":"SPECIFICEREDE UDGIFTER","index":2,"n_rows":6,"n_cols":10,"rows_kept":6,"merged":[[1,1,1,9],[2,1,2,5],[2,6,2,9]]}
[]
[null,"SPECIFICEREDE UDGIFTER"]
[]
[null,"Kode for regnskabsbog","Fakturadato","Fakturanummer","Efter anmodet af","Checkbeløb","Betalingsmodtager","Check brugt til","Distributionsmetode","Fildato:"]
[null,1000,"Dato",100,"Andy Teal",{"v":750.75,"d":"kr. 750.75"},"Consolidated Messenger ","Frankostemplingsmaskine","Post","Dato"]
[null,7000,"Dato",101,"Robert Walters",{"v":2500,"d":"kr. 2,500.00"},"A. Datum Corporation ","2 stationære computere","Kredit","Dato"]

{"sheet":"VELGØRENHED OG SPONSORATER","index":3,"n_rows":6,"n_cols":12,"rows_kept":6,"merged":[[1,1,1,11],[2,1,2,5],[2,6,2,11]]}
[]
[null,"VELGØRENHED OG SPONSORATER"]
[]
[null,"Kode for regnskabsbog","Anmodning om datotjek påbegyndt","Efter anmodet af","Checkbeløb","Forrige års indskud","Betalingsmodtager","Brugt til","Godkendt af","Kategori","Distributionsmetode","Fildato:"]
[null,12000,"Dato","Susan W. Eaton",{"v":1000,"d":"kr. 1,000.00"},{"v":12,"d":"kr. 12.00"},"Kunstakademi ","Stipendier","Kim Ralls","Kunst","Check","Dato"]
[null,11000,"Dato","Susan W. Eaton",{"v":2500,"d":"kr. 2,500.00"},{"v":0,"d":"kr. 0.00"},"Wingtip Toys ","Community","Kathie Flood","Community","Check","Dato"]